Workbook

Sheet Foglio1
A1: Elaborazione di Luciano Piras (lucianopira@tiscali.it Tel. 3276933639) su dati raccolti da Eugenio Vecchione | J1: 3 assi ala alta >> | O1: 3 assi ala bassa | T1: Delta motorizzato | Y1: Autogiro >>>>> | AD1: Elicottero >>>>>> | AI1: Paramot/carrello | AN1: Veliv. Non Ident. | AT1: Cedim. Strutturale | AY1: Collisione Elettrodotto | BD1: Collisione Alberi | BI1: Ammaraggio >>>>> | BN1: Meteo proibitiva | BS1: Uso paracadute | BX1: Collaudo velivolo | CC1: Malore + Varie | CH1: Colonne disponibili per evetuali altri tre eventi
A2: Data | B2: Località | C2: Descrizione dell'incidente | D2: Conseguenze | E2: Velivolo | F2: Siti | G2: D | H2: I | J2: 3AA | K2: Dt | L2: Dt | M2: P | N2: T | O2: 3AB | P2: Dt | Q2: Dt | R2: P | S2: T | T2: DM | U2: Dt | V2: Dt | W2: P | X2: T | Y2: Atg | Z2: Dt | AA2: Dt | AB2: P | AC2: T | AD2: Elc | AE2: Dt | AF2: Dt | AG2: P | AH2: T | AI2: Prm | AJ2: Dt | AK2: Dt | AL2: P | AM2: T | AN2: VNI | AO2: Dt | AP2: Dt | AQ2: P | AR2: T | AT2: CS | AU2: V | AV2: D | AW2: P | AX2: T | AY2: CLE | AZ2: V | BA2: D | BB2: P | BC2: T | BD2: CA | BE2: V | BF2: D | BG2: P | BH2: T | BI2: Amm. | BJ2: V | BK2: D | BL2: P | BM2: T | BN2: IMC | BO2: V | BP2: D | BQ2: P | BR2: T | BS2: Prcd | BT2: V | BU2: D | BV2: P | BW2: T | BX2: Clld. | BY2: V | BZ2: D | CA2: P | CB2: T | CC2: Mlr+Vr | CD2: V | CE2: D | CF2: P | CG2: T | CY2: Velivolo | CZ2: Velocità | DB2: Velocità | DC2: Velivolo | DE2: N° Tot. | DH2: N° Tot. | DI2: Velocità
A4: 2000-07-24 | B4: Canneto sull’Oglio (Mn) | C4: impatto contro una cancellata e successivo incendio | D4: pilota e passeggero deceduti | E4: Tecnam P92 | F4: http://www.tecnam.com/aircraft/p92-eaglet-adv-ul/ - https://en.wikipedia.org/wiki/Tecnam_P92 - | G4: 1 | H4: 1 | J4: 180 | M4: 1 | N4: 1 | CY4: =E4 -> Tecnam P92 | CZ4: =SUM(J4,O4,T4,Y4,AD4,AI4,AN4,AT4,AY4,BD4,BI4,BN4,BS4+BX4+CC4+CH4+CM4+CR4) -> 180.0 | DB4: 88 | DC4: Delta a motore | DE4: 1 | DH4: =COUNTIF(E$4:E$52,E4) -> 4 | DI4: =COUNTIF(CZ$4:CZ$52,CZ4) -> 4
A5: 2001-06-17 | B5: Acqui Terme (Al) | C5: impatto al suolo con incendio a seguito virata accentuata | D5: pilota deceduto | E5: Amigo | F5: http://www.ulm.it/fly_in/test/amigo/amigo.htm | G5: 1 | H5: 1 | O5: 190 | Q5: V | R5: 1 | CY5: Amigo | CZ5: 190.0 | DB5: 130 | DC5: Autogiro | DE5: 1 | DH5: 2 | DI5: 2
A6: 2002-02-24 | B6: Fucecchio(PI) | C6: impatto contro il muro di una casa con successivo incendio | D6: pilota e passeggero deceduti | E6: Pioneer 300 | F6: http://www.alpiaviation.com/it/models.htm?mod=Pioneer%20300%20KITE%20ULM | G6: 1 | H6: 1 | O6: 220 | R6: 1 | S6: 1 | CY6: Pioneer 300 | CZ6: 220.0 | DB6: 144 | DC6: Autogiro Magni M 22 | DE6: 1 | DH6: 3 | DI6: 3
A7: 2002-04-01 | B7: Casamassima (BA) | C7: impatto al suolo in avvicinamento con successivo incendio | D7: pilota ferito, passeggero deceduto | E7: Pioneer 300 | F7: http://www.alpiaviation.com/it/models.htm?mod=Pioneer%20300%20KITE%20ULM | G7: 1 | H7: 1 | O7: 220 | Q7: J | R7: F | S7: 1 | CY7: Pioneer 300 | CZ7: 220.0 | DB7: 150.1 | DC7: Rebel | DE7: 1 | DH7: 3 | DI7: 3
A8: 2002-09-09 | B8: Corropoli (TE) | C8: contatto con linea elettrica in avvicinamento ed impatta al suolo con incendio | D8: pilota ferito, passeggero deceduto | E8: Asso V | F8: http://www.aeromedia.it/lb2450.html | G8: 1 | H8: 1 | AY8: 189 | AZ8: B | BA8: J | BB8: F | BC8: 1 | CY8: Asso V | CZ8: 189.0 | DB8: 150.2 | DC8: Colibrì | DE8: 2 | DH8: 2 | DI8: 2
A9: 2003-06-14 | B9: Nettuno Rm | C9: impatto al suolo con incendio | D9: pilota e passeggero deceduti | E9: Tecnam P96 | F9: https://it.wikipedia.org/wiki/Tecnam_P96_Golf | G9: 1 | H9: 1 | O9: 185.1 | R9: 1 | S9: 1 | CY9: Tecnam P96 | CZ9: 185.1 | DB9: 150.2 | DC9: Colibrì | DE9: 2 | DH9: 2 | DI9: 2
A10: 2003-11-23 | B10: Sondrio | C10: impatto al suolo in virata base e successivo incendio | D10: pilota e passeggero deceduti | E10: CT | F10: http://www.ulm.it/fly_in/test/ct2k/ct2k.htm | G10: 1 | H10: 1 | J10: 230 | L10: V | M10: 1 | N10: 1 | CY10: CT | CZ10: 230.0 | DB10: 170.2 | DC10: Jodel D18 | DE10: 1 | DH10: 1 | DI10: 1
A11: 2004-07-18 | B11: Grosseto | C11: urto contro fili dell’alta tensione con conseguente incendio | D11: pilota e passeggero deceduti | E11: Spotter | G11: 1 | H11: 1 | AY11: 176 | AZ11: A | BB11: 1 | BC11: 1 | CY11: Spotter | CZ11: 176.0 | DB11: 172 | DC11: Elicottero non definito | DE11: 1 | DH11: 1 | DI11: 1
A12: 2004-09-11 | B12: Cerveteri (Rm) | C12: durante un volo fuori effemeridi tocca la cima degli alberi in fase di atterraggio l’impatto con il suolo è successivo incendio del mezzo | D12: pilota e passeggero deceduti | E12: Delta a motore | G12: 1 | H12: 1 | BN12: 88 | BO12: D | BP12: J | BQ12: 1 | BR12: 1 | CY12: Delta a motore | CZ12: 88.0 | DB12: 173 | DC12: Savannah | DE12: 1 | DH12: 1 | DI12: 1
A13: 2004-09-30 | B13: Nepi (Vt) | C13: impatto al suolo in atterraggio con conseguente incendio | D13: pilota deceduto | E13: Storm | F13: http://www.aquilerandagie.com/aquile.php?op=aerei | G13: 1 | H13: 1 | O13: 181 | Q13: J | R13: 1 | CY13: Storm | CZ13: 181.0 | DB13: 176 | DC13: Spotter | DE13: 1 | DH13: 2 | DI13: 2
A14: 2006-04-09 | B14: Cassola (Vi) | C14: Impatto al suolo seguito da incendio in fase di avvicinamento | D14: Pilota e Passeggero Deceduti | E14: Fascination | F14: https://en.wikipedia.org/wiki/UL-Jih_Fascination | G14: 1 | H14: 1 | O14: 243 | Q14: J | R14: 1 | S14: 1 | CY14: =E14 -> Fascination | CZ14: =SUM(J14,O14,T14,Y14,AD14,AI14,AN14,AT14,AY14,BD14,BI14,BN14,BS14+BX14+CC14+CH14+CM14+CR14) -> 243.0 | DB14: 180 | DC14: Tecnam P92 | DE14: 4 | DH14: 1 | DI14: 1
A15: 2006-05-13 | B15: Precenicco (Ud) | C15: impatto al suolo dopo il decollo seguito da incendio | D15: Pilota e Passeggero Deceduti | E15: Storm 200 | F15: http://www.aquilerandagie.com/aquile.php?op=aerei | G15: 1 | H15: 1 | O15: 182 | Q15: H | R15: 1 | S15: 1 | CY15: Storm 200 | CZ15: 182.0 | DB15: 180 | DC15: Tecnam P92 | DE15: 4 | DH15: 1 | DI15: 1
A16: 2006-06-25 | B16: Padula di Altavilla Silentina (Sa) | C16: impatto al suolo in avvicinamento | D16: Pilota Deceduto Passeggero incolume | E16: Afr 50 Meteor | F16: http://mottolaoreste.blog.tiscali.it/2006/06/26/altavilla__incidente_aereo_un_morto_____l_avvocato_piero_di_lauro_1679060-shtml/?doing_wp_cron - | G16: 1 | H16: 1 | BD16: 197.11 | BE16: Y | BF16: J | BH16: 1 | CY16: Afr 50 Meteor | CZ16: 197.1 | DB16: 180 | DC16: Tecnam P92 | DE16: 4 | DH16: 1 | DI16: 1
A17: 2006-07-18 | B17: Santa Maria di Sala (Ve) | C17: impatto con linea elettrica seguito da incendio | D17: Pilota Deceduto | E17: Colibrì | F17: https://en.wikipedia.org/wiki/Br%C3%BCgger_Colibri | G17: 1 | H17: 1 | AY17: 150.2 | AZ17: B | BB17: 1 | CY17: Colibrì | CZ17: 150.2 | DB17: 180 | DC17: Tecnam P92 | DE17: 4 | DH17: 2 | DI17: 2
A18: 2007-04-21 | B18: Isola Serafini (Pc) | C18: impatto al suolo seguito da incendio in condizioni di scarsa visibilità velivolo distrutto | D18: Pilota e Passeggero Deceduti | E18: Folder | F18: http://www.groppo.it/flotta.html | G18: 1 | H18: 1 | BN18: 188 | BO18: A | BQ18: 1 | BR18: 1 | CY18: Folder | CZ18: 188.0 | DB18: 181 | DC18: Storm | DE18: 2 | DH18: 1 | DI18: 1
A19: 2007-06-24 | B19: Otricoli (Tr) | C19: impatto al suolo non definito seguito da incendio | D19: Pilota Deceduto, Passeggero Ferito, velivolo distrutto | E19: Rebel | G19: 1 | H19: 1 | J19: 150.1 | M19: 1 | N19: F | CY19: Rebel | CZ19: 150.1 | DB19: 181 | DC19: Storm | DE19: 2 | DH19: 1 | DI19: 1
A20: 2007-06-28 | B20: Pignola (Pz) | C20: impatto al suolo in fase di decollo seguito da incendio | D20: Pilota e Passeggero Deceduti | E20: Tecnam P92 | F20: http://www.tecnam.com/aircraft/p92-eaglet-adv-ul/ - https://en.wikipedia.org/wiki/Tecnam_P92 - | G20: 1 | H20: 1 | J20: 180 | L20: H | M20: 1 | N20: 1 | CY20: Tecnam P92 | CZ20: 180.0 | DB20: 182 | DC20: Storm 200 | DE20: 1 | DH20: 4 | DI20: 4
A21: 2007-10-22 | B21: Borgo Montello (Lt) | C21: impatto al suolo in condimeteo marginali seguito da incendio | D21: Pilota e Passeggero Deceduti | E21: Esqual | F21: https://en.wikipedia.org/wiki/Aerocomp_VM-1_Esqual | G21: 1 | H21: 1 | O21: 230.2 | P21: N | R21: 1 | S21: 1 | CY21: Esqual | CZ21: 230.2 | DB21: 185 | DC21: Pioneer 200 | DE21: 2 | DH21: 1 | DI21: 1
A22: 2009-06-28 | B22: Formigine (Mo) | C22: impatto al suolo con incendio a seguito piantata motore | D22: Pilota Deceduto, velivolo distrutto | E22: Amigo | F22: http://www.ulm.it/fly_in/test/amigo/amigo.htm | G22: 1 | H22: 1 | O22: 190 | Q22: P | R22: 1 | CY22: Amigo | CZ22: 190.0 | DB22: 185 | DC22: Pioneer 200 | DE22: 2 | DH22: 2 | DI22: 2
A23: 2009-07-11 | B23: Località non definita (Ve) | C23: decollo non riuscito seguito da incendio | D23: Pilota e Passeggero Deceduti | E23: Jihlavan Rapid | F23: http://www.ttultralight.it/datitecnici.htm | G23: 1 | H23: 1 | O23: 210.1 | Q23: H | R23: 1 | S23: 1 | CY23: Jihlavan Rapid | CZ23: 210.1 | DB23: 185.1 | DC23: Tecnam P96 | DE23: 2 | DH23: 1 | DI23: 1
A24: 2009-08-08 | B24: Andria (Ba) | C24: impatto al suolo in avvicinamento in prossimità testata pista seguito da incendio | D24: Pilota e Passeggero Deceduti | E24: Pioneer 200 | F24: http://www.alpiaviation.com/it/models.htm?mod=Pioneer%20200%20SDT | G24: 1 | H24: 1 | O24: 185 | P24: J | R24: 1 | S24: 1 | CY24: Pioneer 200 | CZ24: 185.0 | DB24: 185.1 | DC24: Tecnam P96 | DE24: 2 | DH24: 2 | DI24: 2
A25: 2010-04-05 | B25: Premariacco (Ud) | C25: a seguito passaggio a bassa quota il velivolo veniva in contatto con alberi precipitando al suolo seguito da incendio | D25: Pilota e Passeggero deceduti velivolo distrutto | E25: Tecnam P96 | F25: https://it.wikipedia.org/wiki/Tecnam_P96_Golf | G25: 1 | H25: 1 | BD25: 185.1 | BE25: B | BF25: I | BG25: 1 | BH25: 1 | CY25: Tecnam P96 | CZ25: 185.1 | DB25: 188 | DC25: Folder | DE25: 1 | DH25: 2 | DI25: 2
A26: 2010-04-21 | B26: San Cataldo (Le) | C26: impatto al suolo per cause imprecisate seguito da incendio | D26: Pilota deceduto velivolo distrutto | E26: Tecnam P2002 Sierra | F26: http://www.tecnam.com/aircraft/p2002-jf/ | G26: 1 | H26: 1 | O26: 218 | R26: 1 | CY26: Tecnam P2002 Sierra | CZ26: 218.0 | DB26: 189 | DC26: Asso V | DE26: 2 | DH26: 3 | DI26: 3
A27: 2010-07-18 | B27: Vejano (Vt) | C27: impatto al suolo seguito da incendio a seguito di manovre a bassa quota | D27: Pilota e Passeggero deceduti | E27: Tecnam P2002 Sierra | F27: http://www.tecnam.com/aircraft/p2002-jf/ | G27: 1 | H27: 1 | O27: 218 | P27: I | R27: 1 | S27: 1 | CY27: Tecnam P2002 Sierra | CZ27: 218.0 | DB27: 189 | DC27: Asso V | DE27: 2 | DH27: 3 | DI27: 3
A28: 2011-04-02 | B28: Mossa (Go) | C28: impatto al suolo seguito da incendio a seguito di passaggio basso lungo l’asse pista | D28: Pilota Deceduto, velivolo distrutto, | E28: Asso V | F28: http://www.aeromedia.it/lb2450.html | G28: 1 | H28: 1 | O28: 189 | P28: I | R28: 1 | CY28: =E28 -> Asso V | CZ28: =SUM(J28,O28,T28,Y28,AD28,AI28,AN28,AT28,AY28,BD28,BI28,BN28,BS28+BX28+CC28+CH28+CM28+CR28) -> 189.0 | DB28: 190 | DC28: Amigo | DE28: 2 | DH28: 2 | DI28: 2
A29: 2011-04-24 | B29: Nettuno (Rm) | C29: impatto al suolo seguito da incendio in fase di decollo | D29: Pilota e Passeggero Deceduti, velivolo distrutto, | E29: Storm | F29: http://www.aquilerandagie.com/aquile.php?op=aerei | G29: 1 | H29: 1 | O29: 181 | Q29: H | R29: 1 | S29: 1 | CY29: Storm | CZ29: 181.0 | DB29: 190 | DC29: Amigo | DE29: 2 | DH29: 2 | DI29: 2
A30: 2011-06-04 | B30: Visinale di Sopra (Pn) | C30: impatto al suolo seguito da incendio in esito a contatto con ostacoli verticali durante evoluzioni a bassa quota | D30: Pilota e Passeggero Deceduti, velivolo distrutto, | E30: Tecnam P92 | F30: http://www.tecnam.com/aircraft/p92-eaglet-adv-ul/ - https://en.wikipedia.org/wiki/Tecnam_P92 - | G30: 1 | H30: 1 | AY30: 180 | AZ30: A | BA30: I | BB30: 1 | BC30: 1 | CY30: Tecnam P92 | CZ30: 180.0 | DB30: 197 | DC30: Velivolo non definito | DE30: 1 | DH30: 4 | DI30: 4
A31: 2011-06-26 | B31: Rodigo (Mn) | C31: impatto al suolo seguito da incendio dinamica non definita (*Cedimeno strutturale, vedi note) | D31: Pilota e Passeggero Deceduti, velivolo distrutto, | E31: Savannah | F31: http://www.icpaviazione.it/?page_id=802 | G31: 1 | H31: 1 | AT31: 173 | AU31: A | AW31: 1 | AX31: 1 | CY31: Savannah | CZ31: 173.0 | DB31: 197.11 | DC31: Afr 50 Meteor | DE31: 1 | DH31: 1 | DI31: 1
A32: 2011-08-03 | B32: Cascina (Pi) | C32: impatto al suolo seguito da incendio | D32: Pilota e Passeggero Deceduti, velivolo distrutto, | E32: Velivolo non definito | G32: 1 | H32: 1 | AN32: 197 | AQ32: 1 | AR32: 1 | CY32: Velivolo non definito | CZ32: 197.0 | DB32: 200 | DC32: Sky Arrow | DE32: 2 | DH32: 1 | DI32: 1
A33: 2011-08-09 | B33: Nera Montoro (Tr) | C33: impatto al suolo seguito da incendio in esito a evoluzioni a bassa quota e contatto con linea elettrica | D33: Pilota e Passeggero Deceduti, velivolo distrutto, | E33: Sky Arrow | F33: http://www.skyarrow.it/specifications/ | G33: 1 | H33: 1 | AY33: 200 | AZ33: A | BA33: I | BB33: 1 | BC33: 1 | CY33: Sky Arrow | CZ33: 200.0 | DB33: 200 | DC33: Sky Arrow | DE33: 2 | DH33: 2 | DI33: 2
A34: 2011-08-17 | B34: Onigo di Pederobba (Tv) | C34: impatto al suolo seguito da incendio in esito a contatto con il comignolo di un’abitazione durante evoluzioni a bassa quota | D34: Pilota Deceduto, velivolo distrutto, | E34: Elicottero non definito | G34: 1 | H34: 1 | AY34: 172 | AZ34: E | BA34: I | BB34: 1 | BC34: 1 | CY34: Elicottero non definito | CZ34: 172.0 | DB34: 200.2 | DC34: Fly Synthesis Texan | DE34: 1 | DH34: 1 | DI34: 1
A35: 2011-09-16 | B35: Roma (Rm) | C35: impatto al suolo seguito da incendio in fase di avvicinamento | D35: Pilota Deceduto, velivolo distrutto, | E35: Tecnam P2002 Sierra | F35: http://www.tecnam.com/aircraft/p2002-jf/ | G35: 1 | H35: 1 | O35: 218 | Q35: J | R35: 1 | S35: 1 | CY35: Tecnam P2002 Sierra | CZ35: 218.0 | DB35: 210.1 | DC35: Jihlavan Rapid | DE35: 1 | DH35: 3 | DI35: 3
A36: 2011-11-12 | B36: Ornavasso (Vb) | C36: impatto al suolo seguito da incendio a seguito contatto con linea elettrica | D36: Pilota Deceduto, velivolo distrutto, | E36: Autogiro Magni M 22 | F36: http://www.magnigyro.com/models/m22.html | G36: 1 | H36: 1 | AY36: 144 | AZ36: G | BB36: 1 | CY36: Autogiro Magni M 22 | CZ36: 144.0 | DB36: 213 | DC36: Corby Starlet | DE36: 1 | DH36: 1 | DI36: 1
A37: 2011-11-13 | B37: Revello (Cu) | C37: (* impatto al suolo seguito da incendio in esito a evoluzioni a bassa quota e contatto con linea elettrica) | D37: (* Pilota Deceduto, velivolo distrutto) | E37: Corby Starlet | F37: http://www.ulm.it/fly_in/test/corby/corby.htm | G37: 1 | H37: 1 | AY37: 213 | AZ37: B | BB37: 1 | CY37: Corby Starlet | CZ37: 213.0 | DB37: 218 | DC37: Tecnam P2002 Sierra | DE37: 3 | DH37: 1 | DI37: 1
A38: 2011-12-04 | B38: Moncrivello (Vc) | C38: impatto al suolo seguito da incendio per probabile avaria motore | D38: Pilota Deceduto, velivolo distrutto, | E38: Jodel D18 | F38: http://www.avionsjodel.com/ | G38: 1 | H38: 1 | O38: 170.2 | P38: P | Q38: S | R38: 1 | CY38: Jodel D18 | CZ38: 170.2 | DB38: 218 | DC38: Tecnam P2002 Sierra | DE38: 3 | DH38: =COUNTIF(E$4:E$52,E38) -> 1 | DI38: =COUNTIF(CZ$4:CZ$52,CZ38) -> 1
A39: 2012-06-30 | B39: Limatola (Bn) | C39: impatto al suolo seguito da incendio per possibile cedimento strutturale | D39: Pilota e Passeggero Deceduti, | E39: Sky Arrow | F39: http://www.skyarrow.it/specifications/ | G39: 1 | H39: 1 | AT39: 200 | AU39: A | AW39: 1 | AX39: 1 | CY39: Sky Arrow | CZ39: 200.0 | DB39: 218 | DC39: Tecnam P2002 Sierra | DE39: 3 | DH39: 2 | DI39: 2
A40: 2012-07-11 | B40: Chiusdino (Si) | C40: impatto al suolo seguito da incendio in fase di decollo | D40: Pilota Ferito Passeggero Deceduto, velivolo distrutto | E40: Pipistrel Virus | F40: http://www.pipistrel.it/prodotti/virus.html | G40: 1 | H40: 1 | J40: 225 | L40: H | N40: 1 | CY40: Pipistrel Virus | CZ40: 225.0 | DB40: 220 | DC40: Pioneer 300 | DE40: 3 | DH40: 1 | DI40: 1
A41: 2012-10-06 | B41: Roverchiara (Vr) | C41: impatto al suolo seguito da incendio a seguito contatto con linea elettrica in condimeteo marginali (nebbia) | D41: Pilota e Passeggero Deceduti, velivolo distrutto | E41: Pro Mec Freccia | F41: http://www.promecc.com/freccia-scheda-tecnica/ | G41: 1 | H41: 1 | AY41: 230.3 | AZ41: B | BB41: 1 | BC41: 1 | CY41: Pro Mec Freccia | CZ41: 230.3 | DB41: 220 | DC41: Pioneer 300 | DE41: 3 | DH41: 1 | DI41: 1
A42: 2012-10-08 | B42: Lobbi (Al) | C42: impatto al suolo seguito da incendio in condimeteo marginali (nebbia) | D42: Pilota e Passeggero Deceduti, velivolo distrutto | E42: Lightplanes FK14 | F42: https://en.wikipedia.org/wiki/B%26F_Fk14_Polaris | G42: 1 | H42: 1 | O42: 243.1 | Q42: N | R42: 1 | S42: 1 | CY42: Lightplanes FK14 | CZ42: 243.1 | DB42: 220 | DC42: Pioneer 300 | DE42: 3 | DH42: 1 | DI42: 1
A43: 2013-02-17 | B43: Montemelino di Magione (Pg) | C43: impatto al suolo seguito da incendio | D43: Pilota e Passeggero Deceduti, velivolo distrutto, | E43: Zenair (*CH 650) | F43: http://www.zenithair.com/zodiac/ch650/data/650-flyer.pdf | G43: 1 | H43: 1 | O43: 220.2 | R43: 1 | S43: 1 | CY43: Zenair (*CH 650) | CZ43: 220.2 | DB43: 220.2 | DC43: Zenair (*CH 650) | DE43: 1 | DH43: 1 | DI43: 1
A44: 2013-04-28 | B44: Nettuno (Rm) | C44: impatto al suolo seguito da incendio nel corso di un volo di collaudo (*L'inchiesta ha accertato un infarto del pilota, notizia avuta da Vecchione) | D44: Pilota Deceduto, velivolo distrutto, | E44: MAG 1 | F44: http://www.mag1.it/caratteristiche.htm | G44: 1 | H44: 1 | CC44: 240 | CD44: B | CE44: L | CF44: 1 | CY44: MAG 1 | CZ44: 240.1 | DB44: 220.3 | DC44: Pipistrel Sinus | DE44: 1 | DH44: 1 | DI44: 1
A45: 2013-06-07 | B45: Campochiaro (Te) | C45: impatto al suolo seguito da incendio | D45: Pilota e Passeggero Deceduti, velivolo seriamente danneggiato, | E45: Tecnam P92 | F45: http://www.tecnam.com/aircraft/p92-eaglet-adv-ul/ - https://en.wikipedia.org/wiki/Tecnam_P92 - | G45: 1 | H45: 1 | J45: 180 | M45: 1 | N45: 1 | CY45: Tecnam P92 | CZ45: 180.0 | DB45: 225 | DC45: Pipistrel Virus | DE45: 1 | DH45: 4 | DI45: 4
A46: 2013-07-21 | B46: Sezzano (Ar) | C46: impatto al suolo seguito da incendio | D46: Pilota Deceduto, velivolo distrutto, | E46: Colibrì | F46: https://en.wikipedia.org/wiki/Br%C3%BCgger_Colibri | G46: 1 | H46: 1 | O46: 150.2 | R46: 1 | CY46: Colibrì | CZ46: 150.2 | DB46: 230 | DC46: CT | DE46: 1 | DH46: 2 | DI46: 2
A47: 2013-07-26 | B47: Susegana (Tv) | C47: impatto al suolo con incendio a seguito contatto con linea elettrica ad alta tensione (immatricolato svizzero) | D47: Pilota di nazionalità Svizzera e Passeggero di nazionalità Neozelandese Deceduti, velivolo distrutto | E47: Pipistrel Sinus | F47: http://www.pipistrel.it/prodotti/sinus.html | G47: 1 | H47: 1 | AY47: 220.3 | AZ47: A | BB47: 1 | BC47: 1 | CY47: Pipistrel Sinus | CZ47: 220.3 | DB47: 230.2 | DC47: Esqual | DE47: 1 | DH47: 1 | DI47: 1
A48: 2013-10-25 | B48: Zola Predona (Bo) | C48: impatto al suolo seguito da incendio in zona collinosa possibile meteo avversa | D48: Pilota e Passeggero Deceduti , velivolo distrutto, | E48: Pioneer 300 | F48: http://www.alpiaviation.com/it/models.htm?mod=Pioneer%20300%20KITE%20ULM | G48: 1 | H48: 1 | O48: 220 | R48: 1 | S48: 1 | CY48: Pioneer 300 | CZ48: 220.0 | DB48: 230.3 | DC48: Pro Mec Freccia | DE48: 1 | DH48: 3 | DI48: 3
A49: 2014-04-16 | B49: Gattinara (Vc) | C49: impatto al suolo seguito da incendio per perdita di potenza in decollo, | D49: Pilota Ferito, Passeggero Deceduto velivolo distrutto, | E49: Fly Synthesis Texan | F49: https://en.wikipedia.org/wiki/Fly_Synthesis_Texan - http://www.flysynthesis.com/aerei/page30/topclass/page23.html | G49: 1 | H49: 1 | O49: 200.2 | Q49: P | R49: F | S49: 1 | CY49: Fly Synthesis Texan | CZ49: 200.2 | DB49: 240.1 | DC49: MAG 1 | DE49: 1 | DH49: 1 | DI49: 1
A50: 2014-09-28 | B50: Casaleggio (No) | C50: impatto al suolo seguito da incendio in fase di decollo | D50: Pilota Deceduto , velivolo distrutto, | E50: Autogiro | G50: 1 | H50: 1 | Y50: 130 | AA50: H | AB50: 1 | CY50: Autogiro | CZ50: 130.0 | DB50: 243 | DC50: Fascination | DE50: 1 | DH50: 1 | DI50: 1
A51: 2015-12-05 | B51: Pordenone (Pr) | C51: impatto al suolo seguito da incendio a seguito di volo manovrato | D51: Pilota e Passeggero Deceduti, velivolo distrutto, | E51: Pioneer 200 | F51: http://www.alpiaviation.com/it/models.htm?mod=Pioneer%20200%20SDT | G51: 1 | H51: 1 | O51: 185 | R51: 1 | S51: 1 | CY51: =E51 -> Pioneer 200 | CZ51: =SUM(J51,O51,T51,Y51,AD51,AI51,AN51,AT51,AY51,BD51,BI51,BN51,BS51+BX51+CC51+CH51+CM51+CR51) -> 185.0 | DB51: 243.1 | DC51: Lightplanes FK14 | DE51: 1 | DH51: 2 | DI51: 2
B53: Totali | C53: 1° quadrante "macchine" | D53: 2° quadr. "condizioni" | E53: Totale | J53: 3 assi ala alta >> | O53: 3 assi ala bassa | T53: Delta motorizzato | Y53: Autogiro >>>>> | AD53: Elicottero >>>>>> | AI53: Paramot/carrello | AN53: Veliv. Non Ident. | AT53: Cedim. Strutturale | AY53: Collisione Elettrodotto | BD53: Collisione Alberi | BI53: Ammaraggio >>>>> | BN53: Meteo proibitiva | BS53: Usato paracadute | BX53: Collaudo velivolo | CC53: Malore + Varie
A54: Incidenti | B54: =G54 -> 48 | C54: =SUM(J61,O64,T67,Y70,AD73,AI76,AN79) -> 31 | D54: =B54-C54 -> 17 | E54: =C54+D54 -> 48 | G54: =SUM(G4:G53) -> 48 | H54: =SUM(H4:H53) -> 48
A55: Morti | B55: =SUM(M55:CG55) -> 78 | C55: =SUM(M55:AR55) -> 50 | D55: =B55-C55 -> 28 | E55: =C55+D55 -> 78 | M55: =SUM(M4:M51) -> 5 | N55: =SUM(N4:N51) -> 5 | R55: =SUM(R4:R51) -> 21 | S55: =SUM(S4:S51) -> 16 | W55: =SUM(W4:W51) -> 0 | X55: =SUM(X4:X51) -> 0 | AB55: =SUM(AB4:AB51) -> 1 | AC55: =SUM(AC4:AC51) -> 0 | AG55: =SUM(AG4:AG51) -> 0 | AH55: =SUM(AH4:AH51) -> 0 | AL55: =SUM(AL4:AL51) -> 0 | AM55: =SUM(AM4:AM51) -> 0 | AQ55: =SUM(AQ4:AQ51) -> 1 | AR55: =SUM(AR4:AR51) -> 1 | AW55: =SUM(AW4:AW51) -> 2 | AX55: =SUM(AX4:AX51) -> 2 | BB55: =SUM(BB4:BB51) -> 9 | BC55: =SUM(BC4:BC51) -> 7 | BG55: =SUM(BG4:BG51) -> 1 | BH55: =SUM(BH4:BH51) -> 2 | BL55: =SUM(BL4:BL51) -> 0 | BM55: =SUM(BM4:BM51) -> 0 | BQ55: =SUM(BQ4:BQ51) -> 2 | BR55: =SUM(BR4:BR51) -> 2 | BV55: =SUM(BV4:BV51) -> 0 | BW55: =SUM(BW4:BW51) -> 0 | CA55: =SUM(CA4:CA51) -> 0 | CB55: =SUM(CB4:CB51) -> 0 | CF55: =SUM(CF4:CF51) -> 1 | CG55: =SUM(CG4:CG51) -> 0
A56: Feriti | B56: =SUM(M56:CG56) -> 4 | C56: =SUM(M56:AR56) -> 3 | D56: =B56-C56 -> 1 | E56: =C56+D56 -> 4 | M56: =COUNTIF(M4:M51,"F") -> 0 | N56: =COUNTIF(N4:N51,"F") -> 1 | R56: =COUNTIF(R4:R51,"F") -> 2 | S56: =COUNTIF(S4:S51,"F") -> 0 | W56: =COUNTIF(W4:W51,"F") -> 0 | X56: =COUNTIF(X4:X51,"F") -> 0 | AB56: =COUNTIF(AB4:AB51,"F") -> 0 | AC56: =COUNTIF(AC4:AC51,"F") -> 0 | AG56: =COUNTIF(AG4:AG51,"F") -> 0 | AH56: =COUNTIF(AH4:AH51,"F") -> 0 | AQ56: =COUNTIF(AQ4:AQ51,"F") -> 0 | AR56: =COUNTIF(AR4:AR51,"F") -> 0 | AW56: =COUNTIF(AW4:AW51,"F") -> 0 | AX56: =COUNTIF(AX4:AX51,"F") -> 0 | BB56: =COUNTIF(BB4:BB51,"F") -> 1 | BC56: =COUNTIF(BC4:BC51,"F") -> 0 | BG56: =COUNTIF(BG4:BG51,"F") -> 0 | BH56: =COUNTIF(BH4:BH51,"F") -> 0 | BL56: =COUNTIF(BL4:BL51,"F") -> 0 | BM56: =COUNTIF(BM4:BM51,"F") -> 0 | BQ56: =COUNTIF(BQ4:BQ51,"F") -> 0 | BR56: =COUNTIF(BR4:BR51,"F") -> 0 | BV56: =COUNTIF(BV4:BV51,"F") -> 0 | BW56: =COUNTIF(BW4:BW51,"F") -> 0 | CA56: =COUNTIF(CA4:CA51,"F") -> 0 | CB56: =COUNTIF(CB4:CB51,"F") -> 0 | CF56: =COUNTIF(CF4:CF51,"F") -> 0 | CG56: =COUNTIF(CG4:CG51,"F") -> 0
A57: Incid. % | C57: =C54*100/B54/100 -> 65% | D57: =D54*100/B54/100 -> 35%
A58: Morti % | C58: =C55*100/B55/100 -> 64% | D58: =D55*100/B55/100 -> 36%
A59: Feriti % | C59: 75% | D59: 25% | DA59: 1° Qdr. N° | DB59: 1° Qdr. % | DC59: 2° Qdr. N° | DD59: 2° Qdr. % | DE59: Tot. N° | DF59: Tot. % | DJ59: Cedim. Strutturale | DL59: Collisione Elettrodotto | DN59: Collisione Alberi | DP59: Ammaraggio | DR59: Meteo proibitiva | DT59: Uso Paracadute | DV59: Collaudo velivolo | DX59: Malore+Varie
C60: Piloti | D60: Passeggeri | G60: %
A61: A | B61: Ala alta | E61: Incidenti | F61: =SUM(J61,O61,T61,Y61,AD61,AI61,AN61,AT61,AY61,BD61,BI61,BN61,BS61+BX61+CC61) -> 13 | G61: =F61/E54*100/100 -> 27.1% | H61: A | J61: =COUNTIF(J$4:J$51,">0") -> 6 | K61: =COUNTIF(K$4:K$51,H61) -> 0 | L61: =COUNTIF(L$4:L$51,H61) -> 0 | M61: A | N61: A | O61: =P61+Q61 -> 0 | P61: =COUNTIF(P$4:P$51,N61) -> 0 | Q61: =COUNTIF(Q$4:Q$51,N61) -> 0 | R61: A | S61: A | T61: =U61+V61 -> 0 | U61: =COUNTIF(U$4:U$51,S61) -> 0 | V61: =COUNTIF(V$4:V$51,S61) -> 0 | W61: A | X61: A | Y61: =Z61+AA61 -> 0 | Z61: =COUNTIF(Z$4:Z$51,X61) -> 0 | AA61: =COUNTIF(AA$4:AA$51,X61) -> 0 | AB61: A | AC61: A | AD61: =AE61+AF61 -> 0 | AE61: =COUNTIF(AE$4:AE$51,AC61) -> 0 | AF61: =COUNTIF(AF$4:AF$51,AC61) -> 0 | AG61: A | AH61: A | AI61: =AJ61+AK61 -> 0 | AJ61: =COUNTIF(AJ$4:AJ$51,AH61) -> 0 | AK61: =COUNTIF(AK$4:AK$51,AH61) -> 0 | AL61: A | AM61: A | AN61: =AO61+AP61 -> 0 | AO61: =COUNTIF(AO$4:AO$51,AM61) -> 0 | AP61: =COUNTIF(AP$4:AP$51,AM61) -> 0 | AQ61: A | AR61: A | AT61: =AU61+AV61 -> 2 | AU61: =COUNTIF(AU$4:AU$51,AW61) -> 2 | AV61: =COUNTIF(AV$4:AV$51,AW61) -> 0 | AW61: A | AY61: =AZ61+BA61 -> 4 | AZ61: =COUNTIF(AZ$4:AZ$51,BB61) -> 4 | BA61: =COUNTIF(BA$4:BA$51,BB61) -> 0 | BB61: A | BD61: =BE61+BF61 -> 0 | BE61: =COUNTIF(BE$4:BE$51,BG61) -> 0 | BF61: =COUNTIF(BF$4:BF$51,BG61) -> 0 | BG61: A | BI61: =BJ61+BK61 -> 0 | BJ61: =COUNTIF(BJ$4:BJ$51,BL61) -> 0 | BK61: =COUNTIF(BK$4:BK$51,BL61) -> 0 | BL61: A | BN61: =BO61+BP61 -> 1 | BO61: =COUNTIF(BO$4:BO$51,BQ61) -> 1 | BP61: =COUNTIF(BP$4:BP$51,BQ61) -> 0 | BQ61: A | BS61: =BT61+BU61 -> 0 | BT61: =COUNTIF(BT$4:BT$51,BV61) -> 0 | BU61: =COUNTIF(BU$4:BU$51,BV61) -> 0 | BV61: A | BX61: =BY61+BZ61 -> 0 | BY61: =COUNTIF(BY$4:BY$51,CA61) -> 0 | BZ61: =COUNTIF(BZ$4:BZ$51,CA61) -> 0 | CA61: A | CC61: =CD61+CE61 -> 0 | CD61: =COUNTIF(CD$4:CD$51,CF61) -> 0 | CE61: =COUNTIF(CE$4:CE$51,CF61) -> 0 | CF61: A | CY61: Ala alta | CZ61: Incid. | DA61: =J61 -> 6 | DB61: =DA61*100/DE82/100 -> 12.5% | DC61: =SUM(AT61,AY61,BD61,BI61,BN61,BS61+BX61+CC61) -> 7 | DD61: =DC61*100/DE82/100 -> 14.6% | DE61: =SUM(DA61,DC61) -> 13 | DF61: =DB61+DD61 -> 27.1% | DH61: Ala alta | DI61: Incid. | DJ61: =AT61 -> 2 | DL61: =AY61 -> 4 | DN61: =BD61 -> 0 | DP61: =BI61 -> 0 | DR61: =BN61 -> 1 | DT61: =BS61 -> 0 | DV61: =BX61 -> 0 | DX61: =CC61 -> 0
A62: N | B62: Morti | C62: =SUM(M62,AU62,AZ62,BE62,BJ62,BO62,BT62+BY62+CD62) -> 12 | D62: =SUM(N62,AV62,BA62,BF62,BK62,BP62,BU62+BZ62+CE62) -> 12 | E62: Morti | F62: =C62+D62 -> 24 | G62: =F62/E55*100/100 -> 30.8% | M62: =SUM(M4:M51) -> 5 | N62: =SUM(N4:N51) -> 5 | AT62: =AU62+AV62 -> 4 | AU62: =SUMIFS(AW$4:AW$51,AU$4:AU$51,AW62) -> 2 | AV62: =SUMIFS(AX$4:AX$51,AU$4:AU$51,AW62) -> 2 | AW62: A | AY62: =AZ62+BA62 -> 8 | AZ62: =SUMIFS(BB$4:BB$51,AZ$4:AZ$51,BB62) -> 4 | BA62: =SUMIFS(BC$4:BC$51,AZ$4:AZ$51,BB62) -> 4 | BB62: A | BD62: =BE62+BF62 -> 0 | BE62: =SUMIFS(BG$4:BG$51,BE$4:BE$51,BG62) -> 0 | BF62: =SUMIFS(BH$4:BH$51,BE$4:BE$51,BG62) -> 0 | BG62: A | BI62: =BJ62+BK62 -> 0 | BJ62: =SUMIFS(BL$4:BL$51,BJ$4:BJ$51,BL62) -> 0 | BK62: =SUMIFS(BM$4:BM$51,BJ$4:BJ$51,BL62) -> 0 | BL62: A | BN62: =BO62+BP62 -> 2 | BO62: =SUMIFS(BQ$4:BQ$51,BO$4:BO$51,BQ62) -> 1 | BP62: =SUMIFS(BR$4:BR$51,BO$4:BO$51,BQ62) -> 1 | BQ62: A | BS62: =BT62+BU62 -> 0 | BT62: =SUMIFS(BV$4:BV$51,BT$4:BT$51,BV62) -> 0 | BU62: =SUMIFS(BW$4:BW$51,BT$4:BT$51,BV62) -> 0 | BV62: A | BX62: =BY62+BZ62 -> 0 | BY62: =SUMIFS(CA$4:CA$51,BY$4:BY$51,CA62) -> 0 | BZ62: =SUMIFS(CB$4:CB$51,BY$4:BY$51,CA62) -> 0 | CA62: A | CC62: =CD62+CE62 -> 0 | CD62: =SUMIFS(CF$4:CF$51,CD$4:CD$51,CF62) -> 0 | CE62: =SUMIFS(CG$4:CG$51,CD$4:CD$51,CF62) -> 0 | CF62: A | CZ62: Morti | DA62: =SUM(M62,N62) -> 10 | DB62: =DA62*100/DE83/100 -> 12.8% | DC62: 14 | DD62: =DC62*100/DE83/100 -> 17.9% | DE62: =SUM(DA62,DC62) -> 24 | DF62: =DB62+DD62 -> 30.8% | DI62: Morti | DJ62: =AT62 -> 4 | DL62: =AY62 -> 8 | DN62: =BD62 -> 0 | DP62: =BI62 -> 0 | DR62: =BN62 -> 2 | DT62: =BS62 -> 0 | DV62: =BX62 -> 0 | DX62: =CC62 -> 0
B63: Feriti | C63: =SUM(M63,AU63,AZ63,BE63,BJ63,BO63,BT63+BY63+CD63) -> 0 | D63: =SUM(N63,AV63,BA63,BF63,BK63,BP63,BU63+BZ63+CE63) -> 1 | E63: Feriti | F63: =C63+D63 -> 1 | G63: =F63/E56*100/100 -> 25.0% | M63: =COUNTIF(M4:M51,"F") -> 0 | N63: =COUNTIF(N4:N51,"F") -> 1 | AT63: 0 | AU63: =COUNTIFS(AW$4:AW$51,"F",AU$4:AU$51,AW63) -> 0 | AV63: =COUNTIFS(AX$4:AX$51,"F",AU$4:AU$51,AW63) -> 0 | AW63: A | AY63: 0 | AZ63: =COUNTIFS(BB$4:BB$51,"F",AZ$4:AZ$51,BB63) -> 0 | BA63: =COUNTIFS(BC$4:BC$51,"F",AZ$4:AZ$51,BB63) -> 0 | BB63: A | BD63: 0 | BE63: =COUNTIFS(BG$4:BG$51,"F",BE$4:BE$51,BG63) -> 0 | BF63: =COUNTIFS(BH$4:BH$51,"F",BE$4:BE$51,BG63) -> 0 | BG63: A | BI63: 0 | BJ63: =COUNTIFS(BL$4:BL$51,"F",BJ$4:BJ$51,BL63) -> 0 | BK63: =COUNTIFS(BM$4:BM$51,"F",BJ$4:BJ$51,BL63) -> 0 | BL63: A | BN63: 0 | BO63: =COUNTIFS(BQ$4:BQ$51,"F",BO$4:BO$51,BQ63) -> 0 | BP63: =COUNTIFS(BR$4:BR$51,"F",BO$4:BO$51,BQ63) -> 0 | BQ63: A | BS63: 0 | BT63: =COUNTIFS(BV$4:BV$51,"F",BT$4:BT$51,BV63) -> 0 | BU63: =COUNTIFS(BW$4:BW$51,"F",BT$4:BT$51,BV63) -> 0 | BV63: A | BX63: 0 | BY63: =COUNTIFS(CA$4:CA$51,"F",BY$4:BY$51,CA63) -> 0 | BZ63: =COUNTIFS(CB$4:CB$51,"F",BY$4:BY$51,CA63) -> 0 | CA63: A | CC63: 0 | CD63: =COUNTIFS(CF$4:CF$51,"F",CD$4:CD$51,CF63) -> 0 | CE63: =COUNTIFS(CG$4:CG$51,"F",CD$4:CD$51,CF63) -> 0 | CF63: A | CZ63: Feriti | DA63: =SUM(M63,N63) -> 1 | DB63: 25.0% | DC63: 0 | DD63: 0.0% | DE63: 1 | DF63: =DB63+DD63 -> 25.0% | DX63: 0
A64: B | B64: Ala bassa | E64: Incidenti | F64: =SUM(J64,O64,T64,Y64,AD64,AI64,AN64,AT64,AY64,BD64,BI64,BN64,BS64+BX64+CC64) -> 29 | G64: =F64/E54*100/100 -> 60.4% | H64: B | J64: =K64+L64 -> 0 | K64: =COUNTIF(K$4:K$51,H64) -> 0 | L64: =COUNTIF(L$4:L$51,H64) -> 0 | M64: B | N64: B | O64: =COUNTIF(O$4:O$51,">0") -> 23 | P64: =COUNTIF(P$4:P$51,N64) -> 0 | Q64: =COUNTIF(Q$4:Q$51,N64) -> 0 | R64: B | S64: B | T64: =U64+V64 -> 0 | U64: =COUNTIF(U$4:U$51,S64) -> 0 | V64: =COUNTIF(V$4:V$51,S64) -> 0 | W64: B | X64: B | Y64: =Z64+AA64 -> 0 | Z64: =COUNTIF(Z$4:Z$51,X64) -> 0 | AA64: =COUNTIF(AA$4:AA$51,X64) -> 0 | AB64: B | AC64: B | AD64: =AE64+AF64 -> 0 | AE64: =COUNTIF(AE$4:AE$51,AC64) -> 0 | AF64: =COUNTIF(AF$4:AF$51,AC64) -> 0 | AG64: B | AH64: B | AI64: =AJ64+AK64 -> 0 | AJ64: =COUNTIF(AJ$4:AJ$51,AH64) -> 0 | AK64: =COUNTIF(AK$4:AK$51,AH64) -> 0 | AL64: B | AM64: B | AN64: =AO64+AP64 -> 0 | AO64: =COUNTIF(AO$4:AO$51,AM64) -> 0 | AP64: =COUNTIF(AP$4:AP$51,AM64) -> 0 | AQ64: B | AR64: B | AT64: =AU64+AV64 -> 0 | AU64: =COUNTIF(AU$4:AU$51,AW64) -> 0 | AV64: =COUNTIF(AV$4:AV$51,AW64) -> 0 | AW64: B | AY64: =AZ64+BA64 -> 4 | AZ64: =COUNTIF(AZ$4:AZ$51,BB64) -> 4 | BA64: =COUNTIF(BA$4:BA$51,BB64) -> 0 | BB64: B | BD64: =BE64+BF64 -> 1 | BE64: =COUNTIF(BE$4:BE$51,BG64) -> 1 | BF64: =COUNTIF(BF$4:BF$51,BG64) -> 0 | BG64: B | BI64: =BJ64+BK64 -> 0 | BJ64: =COUNTIF(BJ$4:BJ$51,BL64) -> 0 | BK64: =COUNTIF(BK$4:BK$51,BL64) -> 0 | BL64: B | BN64: =BO64+BP64 -> 0 | BO64: =COUNTIF(BO$4:BO$51,BQ64) -> 0 | BP64: =COUNTIF(BP$4:BP$51,BQ64) -> 0 | BQ64: B | BS64: =BT64+BU64 -> 0 | BT64: =COUNTIF(BT$4:BT$51,BV64) -> 0 | BU64: =COUNTIF(BU$4:BU$51,BV64) -> 0 | BV64: B | BX64: 0 | BY64: =COUNTIF(BY$4:BY$51,CA64) -> 0 | BZ64: =COUNTIF(BZ$4:BZ$51,CA64) -> 0 | CA64: B | CC64: 1 | CD64: =COUNTIF(CD$4:CD$51,CF64) -> 1 | CE64: =COUNTIF(CE$4:CE$51,CF64) -> 0 | CF64: B | CY64: Ala bassa | CZ64: Incid. | DA64: =O64 -> 23 | DB64: =DA64*100/DE82/100 -> 47.9% | DC64: 6 | DD64: =DC64*100/DE82/100 -> 12.5% | DE64: 29 | DF64: 60.4% | DH64: Ala bassa | DI64: Incid. | DJ64: =AT64 -> 0 | DL64: =AY64 -> 4 | DN64: =BD64 -> 1 | DP64: =BI64 -> 0 | DR64: =BN64 -> 0 | DT64: =BS64 -> 0 | DV64: =BX64 -> 0 | DX64: 1
B65: Morti | C65: =SUM(R65,AU65,AZ65,BE65,BJ65,BO65,BT65+BY65+CD65) -> 26 | D65: =SUM(S65,AV65,BA65,BF65,BK65,BP65,BU65+BZ65+CE65) -> 19 | E65: Morti | F65: =C65+D65 -> 45 | G65: =F65/E55*100/100 -> 57.7% | R65: =SUM(R4:R51) -> 21 | S65: =SUM(S4:S51) -> 16 | AT65: 0 | AU65: =SUMIFS(AW$4:AW$51,AU$4:AU$51,AW65) -> 0 | AV65: =SUMIFS(AX$4:AX$51,AU$4:AU$51,AW65) -> 0 | AW65: B | AY65: 5 | AZ65: =SUMIFS(BB$4:BB$51,AZ$4:AZ$51,BB65) -> 3 | BA65: =SUMIFS(BC$4:BC$51,AZ$4:AZ$51,BB65) -> 2 | BB65: B | BD65: 2 | BE65: =SUMIFS(BG$4:BG$51,BE$4:BE$51,BG65) -> 1 | BF65: =SUMIFS(BH$4:BH$51,BE$4:BE$51,BG65) -> 1 | BG65: B | BI65: 0 | BJ65: =SUMIFS(BL$4:BL$51,BJ$4:BJ$51,BL65) -> 0 | BK65: =SUMIFS(BM$4:BM$51,BJ$4:BJ$51,BL65) -> 0 | BL65: B | BN65: 0 | BO65: =SUMIFS(BQ$4:BQ$51,BO$4:BO$51,BQ65) -> 0 | BP65: =SUMIFS(BR$4:BR$51,BO$4:BO$51,BQ65) -> 0 | BQ65: B | BS65: 0 | BT65: =SUMIFS(BV$4:BV$51,BT$4:BT$51,BV65) -> 0 | BU65: =SUMIFS(BW$4:BW$51,BT$4:BT$51,BV65) -> 0 | BV65: B | BX65: 0 | BY65: =SUMIFS(CA$4:CA$51,BY$4:BY$51,CA65) -> 0 | BZ65: =SUMIFS(CB$4:CB$51,BY$4:BY$51,CA65) -> 0 | CA65: B | CC65: 1 | CD65: =SUMIFS(CF$4:CF$51,CD$4:CD$51,CF65) -> 1 | CE65: =SUMIFS(CG$4:CG$51,CD$4:CD$51,CF65) -> 0 | CF65: B | CZ65: Morti | DA65: =SUM(R65,S65) -> 37 | DB65: =DA65*100/DE83/100 -> 47.4% | DC65: 8 | DD65: =DC65*100/DE83/100 -> 10.3% | DE65: 45 | DF65: 57.7% | DI65: Morti | DJ65: =AT65 -> 0 | DL65: =AY65 -> 5 | DN65: =BD65 -> 2 | DP65: =BI65 -> 0 | DR65: =BN65 -> 0 | DT65: =BS65 -> 0 | DV65: =BX65 -> 0 | DX65: 1
B66: Feriti | C66: =SUM(R66,AU66,AZ66,BE66,BJ66,BO66,BT66+BY66+CD66) -> 3 | D66: =SUM(S66,AV66,BA66,BF66,BK66,BP66,BU66+BZ66+CE66) -> 0 | E66: Feriti | F66: =C66+D66 -> 3 | G66: =F66/E56*100/100 -> 75.0% | R66: =COUNTIF(R4:R51,"F") -> 2 | S66: =COUNTIF(S4:S51,"F") -> 0 | AT66: 0 | AU66: =COUNTIFS(AW$4:AW$51,"F",AU$4:AU$51,AW66) -> 0 | AV66: =COUNTIFS(AX$4:AX$51,"F",AU$4:AU$51,AW66) -> 0 | AW66: B | AY66: 1 | AZ66: =COUNTIFS(BB$4:BB$51,"F",AZ$4:AZ$51,BB66) -> 1 | BA66: =COUNTIFS(BC$4:BC$51,"F",AZ$4:AZ$51,BB66) -> 0 | BB66: B | BD66: 0 | BE66: =COUNTIFS(BG$4:BG$51,"F",BE$4:BE$51,BG66) -> 0 | BF66: =COUNTIFS(BH$4:BH$51,"F",BE$4:BE$51,BG66) -> 0 | BG66: B | BI66: 0 | BJ66: =COUNTIFS(BL$4:BL$51,"F",BJ$4:BJ$51,BL66) -> 0 | BK66: =COUNTIFS(BM$4:BM$51,"F",BJ$4:BJ$51,BL66) -> 0 | BL66: B | BN66: 0 | BO66: =COUNTIFS(BQ$4:BQ$51,"F",BO$4:BO$51,BQ66) -> 0 | BP66: =COUNTIFS(BR$4:BR$51,"F",BO$4:BO$51,BQ66) -> 0 | BQ66: B | BS66: 0 | BT66: =COUNTIFS(BV$4:BV$51,"F",BT$4:BT$51,BV66) -> 0 | BU66: =COUNTIFS(BW$4:BW$51,"F",BT$4:BT$51,BV66) -> 0 | BV66: B | BX66: 0 | BY66: =COUNTIFS(CA$4:CA$51,"F",BY$4:BY$51,CA66) -> 0 | BZ66: =COUNTIFS(CB$4:CB$51,"F",BY$4:BY$51,CA66) -> 0 | CA66: B | CC66: 0 | CD66: =COUNTIFS(CF$4:CF$51,"F",CD$4:CD$51,CF66) -> 0 | CE66: =COUNTIFS(CG$4:CG$51,"F",CD$4:CD$51,CF66) -> 0 | CF66: B | CZ66: Feriti | DA66: =SUM(R66,S66) -> 2 | DB66: 50.0% | DC66: 1 | DD66: 25.0% | DE66: 3 | DF66: 75.0% | DX66: 0
A67: D | B67: Delta motorizzato | E67: Incidenti | F67: =SUM(J67,O67,T67,Y67,AD67,AI67,AN67,AT67,AY67,BD67,BI67,BN67,BS67+BX67+CC67) -> 1 | G67: =F67/E54*100/100 -> 2.1% | H67: D | J67: 0 | K67: =COUNTIF(K$4:K$51,H67) -> 0 | L67: =COUNTIF(L$4:L$51,H67) -> 0 | M67: D | N67: D | O67: =P67+Q67 -> 0 | P67: =COUNTIF(P$4:P$51,N67) -> 0 | Q67: =COUNTIF(Q$4:Q$51,N67) -> 0 | R67: D | S67: D | T67: =COUNTIF(T$4:T$51,">0") -> 0 | U67: =COUNTIF(U$4:U$51,S67) -> 0 | V67: =COUNTIF(V$4:V$51,S67) -> 0 | W67: D | X67: D | Y67: 0 | Z67: =COUNTIF(Z$4:Z$51,X67) -> 0 | AA67: =COUNTIF(AA$4:AA$51,X67) -> 0 | AB67: D | AC67: D | AD67: 0 | AE67: =COUNTIF(AE$4:AE$51,AC67) -> 0 | AF67: =COUNTIF(AF$4:AF$51,AC67) -> 0 | AG67: D | AH67: D | AI67: 0 | AJ67: =COUNTIF(AJ$4:AJ$51,AH67) -> 0 | AK67: =COUNTIF(AK$4:AK$51,AH67) -> 0 | AL67: D | AM67: D | AN67: 0 | AO67: =COUNTIF(AO$4:AO$51,AM67) -> 0 | AP67: =COUNTIF(AP$4:AP$51,AM67) -> 0 | AQ67: D | AR67: D | AT67: 0 | AU67: =COUNTIF(AU$4:AU$51,AW67) -> 0 | AV67: =COUNTIF(AV$4:AV$51,AW67) -> 0 | AW67: D | AY67: 0 | AZ67: =COUNTIF(AZ$4:AZ$51,BB67) -> 0 | BA67: =COUNTIF(BA$4:BA$51,BB67) -> 0 | BB67: D | BD67: 0 | BE67: =COUNTIF(BE$4:BE$51,BG67) -> 0 | BF67: =COUNTIF(BF$4:BF$51,BG67) -> 0 | BG67: D | BI67: 0 | BJ67: =COUNTIF(BJ$4:BJ$51,BL67) -> 0 | BK67: =COUNTIF(BK$4:BK$51,BL67) -> 0 | BL67: D | BN67: 1 | BO67: =COUNTIF(BO$4:BO$51,BQ67) -> 1 | BP67: =COUNTIF(BP$4:BP$51,BQ67) -> 0 | BQ67: D | BS67: 0 | BT67: =COUNTIF(BT$4:BT$51,BV67) -> 0 | BU67: =COUNTIF(BU$4:BU$51,BV67) -> 0 | BV67: D | BX67: 0 | BY67: =COUNTIF(BY$4:BY$51,CA67) -> 0 | BZ67: =COUNTIF(BZ$4:BZ$51,CA67) -> 0 | CA67: D | CC67: 0 | CD67: =COUNTIF(CD$4:CD$51,CF67) -> 0 | CE67: =COUNTIF(CE$4:CE$51,CF67) -> 0 | CF67: D | CY67: Delta mot. | CZ67: Incid. | DA67: =T67 -> 0 | DB67: =DA67*100/DE82/100 -> 0.0% | DC67: 1 | DD67: =DC67*100/DE82/100 -> 2.1% | DE67: =SUM(DA67,DC67) -> 1 | DF67: 2.1% | DH67: Delta mot. | DI67: Incid. | DJ67: =AT67 -> 0 | DL67: =AY67 -> 0 | DN67: =BD67 -> 0 | DP67: =BI67 -> 0 | DR67: =BN67 -> 1 | DT67: =BS67 -> 0 | DV67: =BX67 -> 0 | DX67: 0
A68: N | B68: Morti | C68: =SUM(W68,AU68,AZ68,BE68,BJ68,BO68,BT68+BY68+CD68) -> 1 | D68: =SUM(X68,AV68,BA68,BF68,BK68,BP68,BU68+BZ68+CE68) -> 1 | E68: Morti | F68: =C68+D68 -> 2 | G68: =F68/E55*100/100 -> 2.6% | W68: =SUM(W4:W54) -> 0 | X68: =SUM(X4:X54) -> 0 | AT68: 0 | AU68: =SUMIFS(AW$4:AW$51,AU$4:AU$51,AW68) -> 0 | AV68: =SUMIFS(AX$4:AX$51,AU$4:AU$51,AW68) -> 0 | AW68: D | AY68: 0 | AZ68: =SUMIFS(BB$4:BB$51,AZ$4:AZ$51,BB68) -> 0 | BA68: =SUMIFS(BC$4:BC$51,AZ$4:AZ$51,BB68) -> 0 | BB68: D | BD68: 0 | BE68: =SUMIFS(BG$4:BG$51,BE$4:BE$51,BG68) -> 0 | BF68: =SUMIFS(BH$4:BH$51,BE$4:BE$51,BG68) -> 0 | BG68: D | BI68: 0 | BJ68: =SUMIFS(BL$4:BL$51,BJ$4:BJ$51,BL68) -> 0 | BK68: =SUMIFS(BM$4:BM$51,BJ$4:BJ$51,BL68) -> 0 | BL68: D | BN68: 2 | BO68: =SUMIFS(BQ$4:BQ$51,BO$4:BO$51,BQ68) -> 1 | BP68: =SUMIFS(BR$4:BR$51,BO$4:BO$51,BQ68) -> 1 | BQ68: D | BS68: 0 | BT68: =SUMIFS(BV$4:BV$51,BT$4:BT$51,BV68) -> 0 | BU68: =SUMIFS(BW$4:BW$51,BT$4:BT$51,BV68) -> 0 | BV68: D | BX68: 0 | BY68: =SUMIFS(CA$4:CA$51,BY$4:BY$51,CA68) -> 0 | BZ68: =SUMIFS(CB$4:CB$51,BY$4:BY$51,CA68) -> 0 | CA68: D | CC68: 0 | CD68: =SUMIFS(CF$4:CF$51,CD$4:CD$51,CF68) -> 0 | CE68: =SUMIFS(CG$4:CG$51,CD$4:CD$51,CF68) -> 0 | CF68: D | CZ68: Morti | DA68: =SUM(W68,X68) -> 0 | DB68: =DA68*100/DE83/100 -> 0.0% | DC68: 2 | DD68: =DC68*100/DE83/100 -> 2.6% | DE68: 2 | DF68: 2.6% | DI68: Morti | DJ68: =AT68 -> 0 | DL68: =AY68 -> 0 | DN68: =BD68 -> 0 | DP68: =BI68 -> 0 | DR68: =BN68 -> 2 | DT68: =BS68 -> 0 | DV68: =BX68 -> 0 | DX68: 0
B69: Feriti | C69: =SUM(W69,AU69,AZ69,BE69,BJ69,BO69,BT69+BY69+CD69) -> 0 | D69: =SUM(X69,AV69,BA69,BF69,BK69,BP69,BU69+BZ69+CE69) -> 0 | E69: Feriti | F69: =C69+D69 -> 0 | G69: =F69/E56*100/100 -> 0.0% | W69: =COUNTIF(W4:W51,"F") -> 0 | X69: =COUNTIF(X4:X51,"F") -> 0 | AT69: 0 | AU69: =COUNTIFS(AW$4:AW$51,"F",AU$4:AU$51,AW69) -> 0 | AV69: =COUNTIFS(AX$4:AX$51,"F",AU$4:AU$51,AW69) -> 0 | AW69: D | AY69: 0 | AZ69: =COUNTIFS(BB$4:BB$51,"F",AZ$4:AZ$51,BB69) -> 0 | BA69: =COUNTIFS(BC$4:BC$51,"F",AZ$4:AZ$51,BB69) -> 0 | BB69: D | BD69: 0 | BE69: =COUNTIFS(BG$4:BG$51,"F",BE$4:BE$51,BG69) -> 0 | BF69: =COUNTIFS(BH$4:BH$51,"F",BE$4:BE$51,BG69) -> 0 | BG69: D | BI69: 0 | BJ69: =COUNTIFS(BL$4:BL$51,"F",BJ$4:BJ$51,BL69) -> 0 | BK69: =COUNTIFS(BM$4:BM$51,"F",BJ$4:BJ$51,BL69) -> 0 | BL69: D | BN69: 0 | BO69: =COUNTIFS(BQ$4:BQ$51,"F",BO$4:BO$51,BQ69) -> 0 | BP69: =COUNTIFS(BR$4:BR$51,"F",BO$4:BO$51,BQ69) -> 0 | BQ69: D | BS69: 0 | BT69: =COUNTIFS(BV$4:BV$51,"F",BT$4:BT$51,BV69) -> 0 | BU69: =COUNTIFS(BW$4:BW$51,"F",BT$4:BT$51,BV69) -> 0 | BV69: D | BX69: 0 | BY69: =COUNTIFS(CA$4:CA$51,"F",BY$4:BY$51,CA69) -> 0 | BZ69: =COUNTIFS(CB$4:CB$51,"F",BY$4:BY$51,CA69) -> 0 | CA69: D | CC69: 0 | CD69: =COUNTIFS(CF$4:CF$51,"F",CD$4:CD$51,CF69) -> 0 | CE69: =COUNTIFS(CG$4:CG$51,"F",CD$4:CD$51,CF69) -> 0 | CF69: D | CZ69: Feriti | DA69: =SUM(W69,X69) -> 0 | DB69: 0.0% | DC69: 0 | DD69: 0.0% | DE69: 0 | DF69: 0.0%
A70: G | B70: Autogiro | E70: Incidenti | F70: =SUM(J70,O70,T70,Y70,AD70,AI70,AN70,AT70,AY70,BD70,BI70,BN70,BS70+BX70+CC70) -> 2 | G70: =F70/E54*100/100 -> 4.2% | H70: G | J70: 0 | K70: =COUNTIF(K$4:K$51,H70) -> 0 | L70: =COUNTIF(L$4:L$51,H70) -> 0 | M70: G | N70: G | O70: 0 | P70: =COUNTIF(P$4:P$51,N70) -> 0 | Q70: =COUNTIF(Q$4:Q$51,N70) -> 0 | R70: G | S70: G | T70: 0 | U70: =COUNTIF(U$4:U$51,S70) -> 0 | V70: =COUNTIF(V$4:V$51,S70) -> 0 | W70: G | X70: G | Y70: =COUNTIF(Y$4:Y$51,">0") -> 1 | Z70: =COUNTIF(Z$4:Z$51,X70) -> 0 | AA70: =COUNTIF(AA$4:AA$51,X70) -> 0 | AB70: G | AC70: G | AD70: 0 | AE70: =COUNTIF(AE$4:AE$51,AC70) -> 0 | AF70: =COUNTIF(AF$4:AF$51,AC70) -> 0 | AG70: G | AH70: G | AI70: 0 | AJ70: =COUNTIF(AJ$4:AJ$51,AH70) -> 0 | AK70: =COUNTIF(AK$4:AK$51,AH70) -> 0 | AL70: G | AM70: G | AN70: 0 | AO70: =COUNTIF(AO$4:AO$51,AM70) -> 0 | AP70: =COUNTIF(AP$4:AP$51,AM70) -> 0 | AQ70: G | AR70: G | AT70: 0 | AU70: =COUNTIF(AU$4:AU$51,AW70) -> 0 | AV70: =COUNTIF(AV$4:AV$51,AW70) -> 0 | AW70: G | AY70: 1 | AZ70: =COUNTIF(AZ$4:AZ$51,BB70) -> 1 | BA70: =COUNTIF(BA$4:BA$51,BB70) -> 0 | BB70: G | BD70: 0 | BE70: =COUNTIF(BE$4:BE$51,BG70) -> 0 | BF70: =COUNTIF(BF$4:BF$51,BG70) -> 0 | BG70: G | BI70: 0 | BJ70: =COUNTIF(BJ$4:BJ$51,BL70) -> 0 | BK70: =COUNTIF(BK$4:BK$51,BL70) -> 0 | BL70: G | BN70: 0 | BO70: =COUNTIF(BO$4:BO$51,BQ70) -> 0 | BP70: =COUNTIF(BP$4:BP$51,BQ70) -> 0 | BQ70: G | BS70: 0 | BT70: =COUNTIF(BT$4:BT$51,BV70) -> 0 | BU70: =COUNTIF(BU$4:BU$51,BV70) -> 0 | BV70: G | BX70: 0 | BY70: =COUNTIF(BY$4:BY$51,CA70) -> 0 | BZ70: =COUNTIF(BZ$4:BZ$51,CA70) -> 0 | CA70: G | CC70: 0 | CD70: =COUNTIF(CD$4:CD$51,CF70) -> 0 | CE70: =COUNTIF(CE$4:CE$51,CF70) -> 0 | CF70: G | CY70: Autogiro | CZ70: Incid. | DA70: =Y70 -> 1 | DB70: =DA70*100/DE82/100 -> 2.1% | DC70: 1 | DD70: =DC70*100/DE82/100 -> 2.1% | DE70: 2 | DF70: 4.2% | DH70: Autogiro | DI70: Incid. | DJ70: =AT70 -> 0 | DL70: 1 | DN70: =BD70 -> 0 | DP70: =BI70 -> 0 | DR70: =BN70 -> 0 | DT70: =BS70 -> 0 | DV70: =BX70 -> 0 | DX70: 0
A71: N | B71: Morti | C71: =SUM(AB71,AU71,AZ71,BE71,BJ71,BO71,BT71+BY71+CD71) -> 2 | D71: =SUM(AC71,AV71,BA71,BF71,BK71,BP71,BU71+BZ71+CE71) -> 0 | E71: Morti | F71: =C71+D71 -> 2 | G71: =F71/E55*100/100 -> 2.6% | AB71: =SUM(AB4:AB51) -> 1 | AC71: =SUM(AC4:AC51) -> 0 | AT71: 0 | AU71: =SUMIFS(AW$4:AW$51,AU$4:AU$51,AW71) -> 0 | AV71: =SUMIFS(AX$4:AX$51,AU$4:AU$51,AW71) -> 0 | AW71: G | AY71: 1 | AZ71: =SUMIFS(BB$4:BB$51,AZ$4:AZ$51,BB71) -> 1 | BA71: =SUMIFS(BC$4:BC$51,AZ$4:AZ$51,BB71) -> 0 | BB71: G | BD71: 0 | BE71: =SUMIFS(BG$4:BG$51,BE$4:BE$51,BG71) -> 0 | BF71: =SUMIFS(BH$4:BH$51,BE$4:BE$51,BG71) -> 0 | BG71: G | BI71: 0 | BJ71: =SUMIFS(BL$4:BL$51,BJ$4:BJ$51,BL71) -> 0 | BK71: =SUMIFS(BM$4:BM$51,BJ$4:BJ$51,BL71) -> 0 | BL71: G | BN71: 0 | BO71: =SUMIFS(BQ$4:BQ$51,BO$4:BO$51,BQ71) -> 0 | BP71: =SUMIFS(BR$4:BR$51,BO$4:BO$51,BQ71) -> 0 | BQ71: G | BS71: 0 | BT71: =SUMIFS(BV$4:BV$51,BT$4:BT$51,BV71) -> 0 | BU71: =SUMIFS(BW$4:BW$51,BT$4:BT$51,BV71) -> 0 | BV71: G | BX71: 0 | BY71: =SUMIFS(CA$4:CA$51,BY$4:BY$51,CA71) -> 0 | BZ71: =SUMIFS(CB$4:CB$51,BY$4:BY$51,CA71) -> 0 | CA71: G | CC71: 0 | CD71: =SUMIFS(CF$4:CF$51,CD$4:CD$51,CF71) -> 0 | CE71: =SUMIFS(CG$4:CG$51,CD$4:CD$51,CF71) -> 0 | CF71: G | CZ71: Morti | DA71: =SUM(AB71,AC71) -> 1 | DB71: =DA71*100/DE83/100 -> 1.3% | DC71: 1 | DD71: =DC71*100/DE83/100 -> 1.3% | DE71: 2 | DF71: 2.6% | DI71: Morti | DJ71: =AT71 -> 0 | DL71: =AY71 -> 1 | DN71: =BD71 -> 0 | DP71: =BI71 -> 0 | DR71: =BN71 -> 0 | DT71: =BS71 -> 0 | DV71: =BX71 -> 0 | DX71: 0
B72: Feriti | C72: =SUM(AB72,AU72,AZ72,BE72,BJ72,BO72,BT72+BY72+CD72) -> 0 | D72: =SUM(AC72,AV72,BA72,BF72,BK72,BP72,BU72+BZ72+CE72) -> 0 | E72: Feriti | F72: =C72+D72 -> 0 | G72: =F72/E56*100/100 -> 0.0% | AB72: =COUNTIF(AB4:AB51,"F") -> 0 | AC72: =COUNTIF(AC4:AC51,"F") -> 0 | AT72: 0 | AU72: =COUNTIFS(AW$4:AW$51,"F",AU$4:AU$51,AW72) -> 0 | AV72: =COUNTIFS(AX$4:AX$51,"F",AU$4:AU$51,AW72) -> 0 | AW72: G | AY72: 0 | AZ72: =COUNTIFS(BB$4:BB$51,"F",AZ$4:AZ$51,BB72) -> 0 | BA72: =COUNTIFS(BC$4:BC$51,"F",AZ$4:AZ$51,BB72) -> 0 | BB72: G | BD72: 0 | BE72: =COUNTIFS(BG$4:BG$51,"F",BE$4:BE$51,BG72) -> 0 | BF72: =COUNTIFS(BH$4:BH$51,"F",BE$4:BE$51,BG72) -> 0 | BG72: G | BI72: 0 | BJ72: =COUNTIFS(BL$4:BL$51,"F",BJ$4:BJ$51,BL72) -> 0 | BK72: =COUNTIFS(BM$4:BM$51,"F",BJ$4:BJ$51,BL72) -> 0 | BL72: G | BN72: 0 | BO72: =COUNTIFS(BQ$4:BQ$51,"F",BO$4:BO$51,BQ72) -> 0 | BP72: =COUNTIFS(BR$4:BR$51,"F",BO$4:BO$51,BQ72) -> 0 | BQ72: G | BS72: 0 | BT72: =COUNTIFS(BV$4:BV$51,"F",BT$4:BT$51,BV72) -> 0 | BU72: =COUNTIFS(BW$4:BW$51,"F",BT$4:BT$51,BV72) -> 0 | BV72: G | BX72: 0 | BY72: =COUNTIFS(CA$4:CA$51,"F",BY$4:BY$51,CA72) -> 0 | BZ72: =COUNTIFS(CB$4:CB$51,"F",BY$4:BY$51,CA72) -> 0 | CA72: G | CC72: 0 | CD72: =COUNTIFS(CF$4:CF$51,"F",CD$4:CD$51,CF72) -> 0 | CE72: =COUNTIFS(CG$4:CG$51,"F",CD$4:CD$51,CF72) -> 0 | CF72: G | CZ72: Feriti | DA72: =SUM(AB72,AC72) -> 0 | DB72: 0.0% | DC72: 0 | DD72: 0.0% | DE72: 0 | DF72: 0.0%
A73: E | B73: Elicottero | E73: Incidenti | F73: =SUM(J73,O73,T73,Y73,AD73,AI73,AN73,AT73,AY73,BD73,BI73,BN73,BS73+BX73+CC73) -> 1 | G73: =F73/E54*100/100 -> 2.1% | H73: E | J73: 0 | K73: =COUNTIF(K$4:K$51,H73) -> 0 | L73: =COUNTIF(L$4:L$51,H73) -> 0 | M73: E | N73: E | O73: 0 | P73: =COUNTIF(P$4:P$51,N73) -> 0 | Q73: =COUNTIF(Q$4:Q$51,N73) -> 0 | R73: E | S73: E | T73: 0 | U73: =COUNTIF(U$4:U$51,S73) -> 0 | V73: =COUNTIF(V$4:V$51,S73) -> 0 | W73: E | X73: E | Y73: 0 | Z73: =COUNTIF(Z$4:Z$51,X73) -> 0 | AA73: =COUNTIF(AA$4:AA$51,X73) -> 0 | AB73: E | AC73: E | AD73: =COUNTIF(AD$4:AD$51,">0") -> 0 | AE73: =COUNTIF(AE$4:AE$51,AC73) -> 0 | AF73: =COUNTIF(AF$4:AF$51,AC73) -> 0 | AG73: E | AH73: E | AI73: 0 | AJ73: =COUNTIF(AJ$4:AJ$51,AH73) -> 0 | AK73: =COUNTIF(AK$4:AK$51,AH73) -> 0 | AL73: E | AM73: E | AN73: 0 | AO73: =COUNTIF(AO$4:AO$51,AM73) -> 0 | AP73: =COUNTIF(AP$4:AP$51,AM73) -> 0 | AQ73: E | AR73: E | AT73: 0 | AU73: =COUNTIF(AU$4:AU$51,AW73) -> 0 | AV73: =COUNTIF(AV$4:AV$51,AW73) -> 0 | AW73: E | AY73: 1 | AZ73: =COUNTIF(AZ$4:AZ$51,BB73) -> 1 | BA73: =COUNTIF(BA$4:BA$51,BB73) -> 0 | BB73: E | BD73: 0 | BE73: =COUNTIF(BE$4:BE$51,BG73) -> 0 | BF73: =COUNTIF(BF$4:BF$51,BG73) -> 0 | BG73: E | BI73: 0 | BJ73: =COUNTIF(BJ$4:BJ$51,BL73) -> 0 | BK73: =COUNTIF(BK$4:BK$51,BL73) -> 0 | BL73: E | BN73: 0 | BO73: =COUNTIF(BO$4:BO$51,BQ73) -> 0 | BP73: =COUNTIF(BP$4:BP$51,BQ73) -> 0 | BQ73: E | BS73: 0 | BT73: =COUNTIF(BT$4:BT$51,BV73) -> 0 | BU73: =COUNTIF(BU$4:BU$51,BV73) -> 0 | BV73: E | BX73: 0 | BY73: =COUNTIF(BY$4:BY$51,CA73) -> 0 | BZ73: =COUNTIF(BZ$4:BZ$51,CA73) -> 0 | CA73: E | CC73: 0 | CD73: =COUNTIF(CD$4:CD$51,CF73) -> 0 | CE73: =COUNTIF(CE$4:CE$51,CF73) -> 0 | CF73: E | CY73: Elicottero | CZ73: Incid. | DA73: =AD73 -> 0 | DB73: =DA73*100/DE82/100 -> 0.0% | DC73: 1 | DD73: =DC73*100/DE82/100 -> 2.1% | DE73: 1 | DF73: 2.1% | DH73: Elicottero | DI73: Incid. | DJ73: =AT73 -> 0 | DL73: =AY73 -> 1 | DN73: =BD73 -> 0 | DP73: =BI73 -> 0 | DR73: =BN73 -> 0 | DT73: =BS73 -> 0 | DV73: =BX73 -> 0 | DX73: 0
A74: N | B74: Morti | C74: =SUM(AG74,AU74,AZ74,BE74,BJ74,BO74,BT74+BY74+CD74) -> 1 | D74: =SUM(AH74,AV74,BA74,BF74,BK74,BP74,BU74+BZ74+CE74) -> 1 | E74: Morti | F74: =C74+D74 -> 2 | G74: =F74/E55*100/100 -> 2.6% | AG74: =SUM(AG4:AG51) -> 0 | AH74: =SUM(AH4:AH51) -> 0 | AT74: 0 | AU74: =SUMIFS(AW$4:AW$51,AU$4:AU$51,AW74) -> 0 | AV74: =SUMIFS(AX$4:AX$51,AU$4:AU$51,AW74) -> 0 | AW74: E | AY74: 2 | AZ74: =SUMIFS(BB$4:BB$51,AZ$4:AZ$51,BB74) -> 1 | BA74: =SUMIFS(BC$4:BC$51,AZ$4:AZ$51,BB74) -> 1 | BB74: E | BD74: 0 | BE74: =SUMIFS(BG$4:BG$51,BE$4:BE$51,BG74) -> 0 | BF74: =SUMIFS(BH$4:BH$51,BE$4:BE$51,BG74) -> 0 | BG74: E | BI74: 0 | BJ74: =SUMIFS(BL$4:BL$51,BJ$4:BJ$51,BL74) -> 0 | BK74: =SUMIFS(BM$4:BM$51,BJ$4:BJ$51,BL74) -> 0 | BL74: E | BN74: 0 | BO74: =SUMIFS(BQ$4:BQ$51,BO$4:BO$51,BQ74) -> 0 | BP74: =SUMIFS(BR$4:BR$51,BO$4:BO$51,BQ74) -> 0 | BQ74: E | BS74: 0 | BT74: =SUMIFS(BV$4:BV$51,BT$4:BT$51,BV74) -> 0 | BU74: =SUMIFS(BW$4:BW$51,BT$4:BT$51,BV74) -> 0 | BV74: E | BX74: 0 | BY74: =SUMIFS(CA$4:CA$51,BY$4:BY$51,CA74) -> 0 | BZ74: =SUMIFS(CB$4:CB$51,BY$4:BY$51,CA74) -> 0 | CA74: E | CC74: 0 | CD74: =SUMIFS(CF$4:CF$51,CD$4:CD$51,CF74) -> 0 | CE74: =SUMIFS(CG$4:CG$51,CD$4:CD$51,CF74) -> 0 | CF74: E | CZ74: Morti | DA74: =SUM(AG74,AH74) -> 0 | DB74: =DA74*100/DE83/100 -> 0.0% | DC74: 2 | DD74: =DC74*100/DE83/100 -> 2.6% | DE74: 2 | DF74: 2.6% | DI74: Morti | DJ74: =AT74 -> 0 | DL74: =AY74 -> 2 | DN74: =BD74 -> 0 | DP74: =BI74 -> 0 | DR74: =BN74 -> 0 | DT74: =BS74 -> 0 | DV74: =BX74 -> 0 | DX74: 0
B75: Feriti | C75: =SUM(AG75,AU75,AZ75,BE75,BJ75,BO75,BT75+BY75+CD75) -> 0 | D75: =SUM(AH75,AV75,BA75,BF75,BK75,BP75,BU75+BZ75+CE75) -> 0 | E75: Feriti | F75: =C75+D75 -> 0 | G75: =F75/E56*100/100 -> 0.0% | AG75: =COUNTIF(AG4:AG51,"F") -> 0 | AH75: =COUNTIF(AH4:AH51,"F") -> 0 | AT75: 0 | AU75: =COUNTIFS(AW$4:AW$51,"F",AU$4:AU$51,AW75) -> 0 | AV75: =COUNTIFS(AX$4:AX$51,"F",AU$4:AU$51,AW75) -> 0 | AW75: E | AY75: 0 | AZ75: =COUNTIFS(BB$4:BB$51,"F",AZ$4:AZ$51,BB75) -> 0 | BA75: =COUNTIFS(BC$4:BC$51,"F",AZ$4:AZ$51,BB75) -> 0 | BB75: E | BD75: 0 | BE75: =COUNTIFS(BG$4:BG$51,"F",BE$4:BE$51,BG75) -> 0 | BF75: =COUNTIFS(BH$4:BH$51,"F",BE$4:BE$51,BG75) -> 0 | BG75: E | BI75: 0 | BJ75: =COUNTIFS(BL$4:BL$51,"F",BJ$4:BJ$51,BL75) -> 0 | BK75: =COUNTIFS(BM$4:BM$51,"F",BJ$4:BJ$51,BL75) -> 0 | BL75: E | BN75: 0 | BO75: =COUNTIFS(BQ$4:BQ$51,"F",BO$4:BO$51,BQ75) -> 0 | BP75: =COUNTIFS(BR$4:BR$51,"F",BO$4:BO$51,BQ75) -> 0 | BQ75: E | BS75: 0 | BT75: =COUNTIFS(BV$4:BV$51,"F",BT$4:BT$51,BV75) -> 0 | BU75: =COUNTIFS(BW$4:BW$51,"F",BT$4:BT$51,BV75) -> 0 | BV75: E | BX75: 0 | BY75: =COUNTIFS(CA$4:CA$51,"F",BY$4:BY$51,CA75) -> 0 | BZ75: =COUNTIFS(CB$4:CB$51,"F",BY$4:BY$51,CA75) -> 0 | CA75: E | CC75: 0 | CD75: =COUNTIFS(CF$4:CF$51,"F",CD$4:CD$51,CF75) -> 0 | CE75: =COUNTIFS(CG$4:CG$51,"F",CD$4:CD$51,CF75) -> 0 | CF75: E | CZ75: Feriti | DA75: =SUM(AG75,AH75) -> 0 | DB75: 0.0% | DC75: 0 | DD75: 0.0% | DE75: 0 | DF75: 0.0%
A76: T | B76: Paracarrello o paramotore | E76: Incidenti | F76: =SUM(J76,O76,T76,Y76,AD76,AI76,AN76,AT76,AY76,BD76,BI76,BN76,BS76+BX76+CC76) -> 0 | G76: =F76/E54*100/100 -> 0.0% | H76: T | J76: 0 | K76: =COUNTIF(K$4:K$51,H76) -> 0 | L76: =COUNTIF(L$4:L$51,H76) -> 0 | M76: T | N76: T | O76: 0 | P76: =COUNTIF(P$4:P$51,N76) -> 0 | Q76: =COUNTIF(Q$4:Q$51,N76) -> 0 | R76: T | S76: T | T76: 0 | U76: =COUNTIF(U$4:U$51,S76) -> 0 | V76: =COUNTIF(V$4:V$51,S76) -> 0 | W76: T | X76: T | Y76: 0 | Z76: =COUNTIF(Z$4:Z$51,X76) -> 0 | AA76: =COUNTIF(AA$4:AA$51,X76) -> 0 | AB76: T | AC76: T | AD76: 0 | AE76: =COUNTIF(AE$4:AE$51,AC76) -> 0 | AF76: =COUNTIF(AF$4:AF$51,AC76) -> 0 | AG76: T | AH76: T | AI76: =COUNTIF(AI$4:AI$51,">0") -> 0 | AJ76: =COUNTIF(AJ$4:AJ$51,AH76) -> 0 | AK76: =COUNTIF(AK$4:AK$51,AH76) -> 0 | AL76: T | AM76: T | AN76: 0 | AO76: =COUNTIF(AO$4:AO$51,AM76) -> 0 | AP76: =COUNTIF(AP$4:AP$51,AM76) -> 0 | AQ76: T | AR76: T | AT76: 0 | AU76: =COUNTIF(AU$4:AU$51,AW76) -> 0 | AV76: =COUNTIF(AV$4:AV$51,AW76) -> 0 | AW76: T | AY76: 0 | AZ76: =COUNTIF(AZ$4:AZ$51,BB76) -> 0 | BA76: =COUNTIF(BA$4:BA$51,BB76) -> 0 | BB76: T | BD76: 0 | BE76: =COUNTIF(BE$4:BE$51,BG76) -> 0 | BF76: =COUNTIF(BF$4:BF$51,BG76) -> 0 | BG76: T | BI76: 0 | BJ76: =COUNTIF(BJ$4:BJ$51,BL76) -> 0 | BK76: =COUNTIF(BK$4:BK$51,BL76) -> 0 | BL76: T | BN76: 0 | BO76: =COUNTIF(BO$4:BO$51,BQ76) -> 0 | BP76: =COUNTIF(BP$4:BP$51,BQ76) -> 0 | BQ76: T | BS76: 0 | BT76: =COUNTIF(BT$4:BT$51,BV76) -> 0 | BU76: =COUNTIF(BU$4:BU$51,BV76) -> 0 | BV76: T | BX76: 0 | BY76: =COUNTIF(BY$4:BY$51,CA76) -> 0 | BZ76: =COUNTIF(BZ$4:BZ$51,CA76) -> 0 | CA76: T | CC76: 0 | CD76: =COUNTIF(CD$4:CD$51,CF76) -> 0 | CE76: =COUNTIF(CE$4:CE$51,CF76) -> 0 | CF76: T | CY76: Parac/mt. | CZ76: Incid. | DA76: =AI76 -> 0 | DB76: =DA76*100/DE82/100 -> 0.0% | DC76: 0 | DD76: =DC76*100/DE82/100 -> 0.0% | DE76: 0 | DF76: 0.0% | DH76: Parac/mt. | DI76: Incid. | DJ76: =AT76 -> 0 | DL76: =AY76 -> 0 | DN76: =BD76 -> 0 | DP76: =BI76 -> 0 | DR76: =BN76 -> 0 | DT76: =BS76 -> 0 | DV76: =BX76 -> 0 | DX76: 0
A77: N | B77: Morti | C77: =SUM(AL77,AU77,AZ77,BE77,BJ77,BO77,BT77+BY77+CD77) -> 0 | D77: =SUM(AM77,AV77,BA77,BF77,BK77,BP77,BU77+BZ77+CE77) -> 0 | E77: Morti | F77: =C77+D77 -> 0 | G77: =F77/E55*100/100 -> 0.0% | AL77: =SUM(AL4:AL51) -> 0 | AM77: =SUM(AM4:AM51) -> 0 | AT77: 0 | AU77: =SUMIFS(AW$4:AW$51,AU$4:AU$51,AW77) -> 0 | AV77: =SUMIFS(AX$4:AX$51,AU$4:AU$51,AW77) -> 0 | AW77: T | AY77: 0 | AZ77: =SUMIFS(BB$4:BB$51,AZ$4:AZ$51,BB77) -> 0 | BA77: =SUMIFS(BC$4:BC$51,AZ$4:AZ$51,BB77) -> 0 | BB77: T | BD77: 0 | BE77: =SUMIFS(BG$4:BG$51,BE$4:BE$51,BG77) -> 0 | BF77: =SUMIFS(BH$4:BH$51,BE$4:BE$51,BG77) -> 0 | BG77: T | BI77: 0 | BJ77: =SUMIFS(BL$4:BL$51,BJ$4:BJ$51,BL77) -> 0 | BK77: =SUMIFS(BM$4:BM$51,BJ$4:BJ$51,BL77) -> 0 | BL77: T | BN77: 0 | BO77: =SUMIFS(BQ$4:BQ$51,BO$4:BO$51,BQ77) -> 0 | BP77: =SUMIFS(BR$4:BR$51,BO$4:BO$51,BQ77) -> 0 | BQ77: T | BS77: 0 | BT77: =SUMIFS(BV$4:BV$51,BT$4:BT$51,BV77) -> 0 | BU77: =SUMIFS(BW$4:BW$51,BT$4:BT$51,BV77) -> 0 | BV77: T | BX77: 0 | BY77: =SUMIFS(CA$4:CA$51,BY$4:BY$51,CA77) -> 0 | BZ77: =SUMIFS(CB$4:CB$51,BY$4:BY$51,CA77) -> 0 | CA77: T | CC77: 0 | CD77: =SUMIFS(CF$4:CF$51,CD$4:CD$51,CF77) -> 0 | CE77: =SUMIFS(CG$4:CG$51,CD$4:CD$51,CF77) -> 0 | CF77: T | CZ77: Morti | DA77: =SUM(AL77,AM77) -> 0 | DB77: =DA77*100/DE83/100 -> 0.0% | DC77: 0 | DD77: =DC77*100/DE83/100 -> 0.0% | DE77: 0 | DF77: 0.0% | DI77: Morti | DJ77: =AT77 -> 0 | DL77: =AY77 -> 0 | DN77: =BD77 -> 0 | DP77: =BI77 -> 0 | DR77: =BN77 -> 0 | DT77: =BS77 -> 0 | DV77: =BX77 -> 0 | DX77: 0
B78: Feriti | C78: =SUM(AL78,AU78,AZ78,BE78,BJ78,BO78,BT78+BY78+CD78) -> 0 | D78: =SUM(AM78,AV78,BA78,BF78,BK78,BP78,BU78+BZ78+CE78) -> 0 | E78: Feriti | F78: =C78+D78 -> 0 | G78: =F78/E56*100/100 -> 0.0% | AL78: =COUNTIF(AL4:AL51,"F") -> 0 | AM78: =COUNTIF(AM4:AM51,"F") -> 0 | AT78: 0 | AU78: =COUNTIFS(AW$4:AW$51,"F",AU$4:AU$51,AW78) -> 0 | AV78: =COUNTIFS(AX$4:AX$51,"F",AU$4:AU$51,AW78) -> 0 | AW78: T | AY78: 0 | AZ78: =COUNTIFS(BB$4:BB$51,"F",AZ$4:AZ$51,BB78) -> 0 | BA78: =COUNTIFS(BC$4:BC$51,"F",AZ$4:AZ$51,BB78) -> 0 | BB78: T | BD78: 0 | BE78: =COUNTIFS(BG$4:BG$51,"F",BE$4:BE$51,BG78) -> 0 | BF78: =COUNTIFS(BH$4:BH$51,"F",BE$4:BE$51,BG78) -> 0 | BG78: T | BI78: 0 | BJ78: =COUNTIFS(BL$4:BL$51,"F",BJ$4:BJ$51,BL78) -> 0 | BK78: =COUNTIFS(BM$4:BM$51,"F",BJ$4:BJ$51,BL78) -> 0 | BL78: T | BN78: 0 | BO78: =COUNTIFS(BQ$4:BQ$51,"F",BO$4:BO$51,BQ78) -> 0 | BP78: =COUNTIFS(BR$4:BR$51,"F",BO$4:BO$51,BQ78) -> 0 | BQ78: T | BS78: 0 | BT78: =COUNTIFS(BV$4:BV$51,"F",BT$4:BT$51,BV78) -> 0 | BU78: =COUNTIFS(BW$4:BW$51,"F",BT$4:BT$51,BV78) -> 0 | BV78: T | BX78: 0 | BY78: =COUNTIFS(CA$4:CA$51,"F",BY$4:BY$51,CA78) -> 0 | BZ78: =COUNTIFS(CB$4:CB$51,"F",BY$4:BY$51,CA78) -> 0 | CA78: T | CC78: 0 | CD78: =COUNTIFS(CF$4:CF$51,"F",CD$4:CD$51,CF78) -> 0 | CE78: =COUNTIFS(CG$4:CG$51,"F",CD$4:CD$51,CF78) -> 0 | CF78: T | CZ78: Feriti | DA78: =SUM(AL78,AM78) -> 0 | DB78: 0.0% | DC78: 0 | DD78: 0.0% | DE78: 0 | DF78: 0.0%
A79: Y | B79: Velivolo non identificato | E79: Incidenti | F79: =SUM(J79,O79,T79,Y79,AD79,AI79,AN79,AT79,AY79,BD79,BI79,BN79,BS79+BX79+CC79) -> 2 | G79: =F79/E54*100/100 -> 4.2% | H79: Y | J79: 0 | K79: =COUNTIF(K$4:K$51,H79) -> 0 | L79: =COUNTIF(L$4:L$51,H79) -> 0 | M79: Y | N79: Y | O79: 0 | P79: =COUNTIF(P$4:P$51,N79) -> 0 | Q79: =COUNTIF(Q$4:Q$51,N79) -> 0 | R79: Y | S79: Y | T79: 0 | U79: =COUNTIF(U$4:U$51,S79) -> 0 | V79: =COUNTIF(V$4:V$51,S79) -> 0 | W79: Y | X79: Y | Y79: 0 | Z79: =COUNTIF(Z$4:Z$51,X79) -> 0 | AA79: =COUNTIF(AA$4:AA$51,X79) -> 0 | AB79: Y | AC79: Y | AD79: 0 | AE79: =COUNTIF(AE$4:AE$51,AC79) -> 0 | AF79: =COUNTIF(AF$4:AF$51,AC79) -> 0 | AG79: Y | AH79: Y | AI79: 0 | AJ79: =COUNTIF(AJ$4:AJ$51,AH79) -> 0 | AK79: =COUNTIF(AK$4:AK$51,AH79) -> 0 | AL79: Y | AM79: Y | AN79: =COUNTIF(AN$4:AN$51,">0") -> 1 | AO79: =COUNTIF(AO$4:AO$51,AM79) -> 0 | AP79: =COUNTIF(AP$4:AP$51,AM79) -> 0 | AQ79: Y | AR79: Y | AT79: 0 | AU79: =COUNTIF(AU$4:AU$51,AW79) -> 0 | AV79: =COUNTIF(AV$4:AV$51,AW79) -> 0 | AW79: Y | AY79: 0 | AZ79: =COUNTIF(AZ$4:AZ$51,BB79) -> 0 | BA79: =COUNTIF(BA$4:BA$51,BB79) -> 0 | BB79: Y | BD79: 1 | BE79: =COUNTIF(BE$4:BE$51,BG79) -> 1 | BF79: =COUNTIF(BF$4:BF$51,BG79) -> 0 | BG79: Y | BI79: 0 | BJ79: =COUNTIF(BJ$4:BJ$51,BL79) -> 0 | BK79: =COUNTIF(BK$4:BK$51,BL79) -> 0 | BL79: Y | BN79: 0 | BO79: =COUNTIF(BO$4:BO$51,BQ79) -> 0 | BP79: =COUNTIF(BP$4:BP$51,BQ79) -> 0 | BQ79: Y | BS79: 0 | BT79: =COUNTIF(BT$4:BT$51,BV79) -> 0 | BU79: =COUNTIF(BU$4:BU$51,BV79) -> 0 | BV79: Y | BX79: 0 | BY79: =COUNTIF(BY$4:BY$51,CA79) -> 0 | BZ79: =COUNTIF(BZ$4:BZ$51,CA79) -> 0 | CA79: Y | CC79: 0 | CD79: =COUNTIF(CD$4:CD$51,CF79) -> 0 | CE79: =COUNTIF(CE$4:CE$51,CF79) -> 0 | CF79: Y | CY79: Veliv. N I | CZ79: Incid. | DA79: =AN79 -> 1 | DB79: =DA79*100/DE82/100 -> 2.1% | DC79: 1 | DD79: =DC79*100/DE82/100 -> 2.1% | DE79: 2 | DF79: 4.2% | DH79: Veliv. N I | DI79: Incid. | DJ79: =AT79 -> 0 | DL79: =AY79 -> 0 | DN79: =BD79 -> 1 | DP79: =BI79 -> 0 | DR79: =BN79 -> 0 | DT79: =BS79 -> 0 | DV79: =BX79 -> 0 | DX79: 0
B80: Morti | C80: =SUM(AQ80,AU80,AZ80,BE80,BJ80,BO80,BT80+BY80+CD80) -> 1 | D80: =SUM(AR80,AV80,BA80,BF80,BK80,BP80,BU80+BZ80+CE80) -> 2 | E80: Morti | F80: =C80+D80 -> 3 | G80: =F80/E55*100/100 -> 3.8% | AQ80: =SUM(AQ4:AQ51) -> 1 | AR80: =SUM(AR4:AR51) -> 1 | AT80: 0 | AU80: =SUMIFS(AW$4:AW$51,AU$4:AU$51,AW80) -> 0 | AV80: =SUMIFS(AX$4:AX$51,AU$4:AU$51,AW80) -> 0 | AW80: Y | AY80: 0 | AZ80: =SUMIFS(BB$4:BB$51,AZ$4:AZ$51,BB80) -> 0 | BA80: =SUMIFS(BC$4:BC$51,AZ$4:AZ$51,BB80) -> 0 | BB80: Y | BD80: 1 | BE80: =SUMIFS(BG$4:BG$51,BE$4:BE$51,BG80) -> 0 | BF80: =SUMIFS(BH$4:BH$51,BE$4:BE$51,BG80) -> 1 | BG80: Y | BI80: 0 | BJ80: =SUMIFS(BL$4:BL$51,BJ$4:BJ$51,BL80) -> 0 | BK80: =SUMIFS(BM$4:BM$51,BJ$4:BJ$51,BL80) -> 0 | BL80: Y | BN80: 0 | BO80: =SUMIFS(BQ$4:BQ$51,BO$4:BO$51,BQ80) -> 0 | BP80: =SUMIFS(BR$4:BR$51,BO$4:BO$51,BQ80) -> 0 | BQ80: Y | BS80: 0 | BT80: =SUMIFS(BV$4:BV$51,BT$4:BT$51,BV80) -> 0 | BU80: =SUMIFS(BW$4:BW$51,BT$4:BT$51,BV80) -> 0 | BV80: Y | BX80: 0 | BY80: =SUMIFS(CA$4:CA$51,BY$4:BY$51,CA80) -> 0 | BZ80: =SUMIFS(CB$4:CB$51,BY$4:BY$51,CA80) -> 0 | CA80: Y | CC80: 0 | CD80: =SUMIFS(CF$4:CF$51,CD$4:CD$51,CF80) -> 0 | CE80: =SUMIFS(CG$4:CG$51,CD$4:CD$51,CF80) -> 0 | CF80: Y | CZ80: Morti | DA80: =SUM(AQ80,AR80) -> 2 | DB80: =DA80*100/DE83/100 -> 2.6% | DC80: 1 | DD80: =DC80*100/DE83/100 -> 1.3% | DE80: 3 | DF80: 3.8% | DI80: Morti | DJ80: =AT80 -> 0 | DL80: =AY80 -> 0 | DN80: =BD80 -> 1 | DP80: =BI80 -> 0 | DR80: =BN80 -> 0 | DT80: =BS80 -> 0 | DV80: =BX80 -> 0 | DX80: 0
B81: Feriti | C81: =SUM(AQ81,AU81,AZ81,BE81,BJ81,BO81,BT81+BY81+CD81) -> 0 | D81: =SUM(AR81,AV81,BA81,BF81,BK81,BP81,BU81+BZ81+CE81) -> 0 | E81: Feriti | F81: =C81+D81 -> 0 | G81: =F81/E56*100/100 -> 0.0% | AQ81: =COUNTIF(AQ4:AQ51,"F") -> 0 | AR81: =COUNTIF(AR4:AR51,"F") -> 0 | AT81: 0 | AU81: =COUNTIFS(AW$4:AW$51,"F",AU$4:AU$51,AW81) -> 0 | AV81: =COUNTIFS(AX$4:AX$51,"F",AU$4:AU$51,AW81) -> 0 | AW81: Y | AY81: 0 | AZ81: =COUNTIFS(BB$4:BB$51,"F",AZ$4:AZ$51,BB81) -> 0 | BA81: =COUNTIFS(BC$4:BC$51,"F",AZ$4:AZ$51,BB81) -> 0 | BB81: Y | BD81: 0 | BE81: =COUNTIFS(BG$4:BG$51,"F",BE$4:BE$51,BG81) -> 0 | BF81: =COUNTIFS(BH$4:BH$51,"F",BE$4:BE$51,BG81) -> 0 | BG81: Y | BI81: 0 | BJ81: =COUNTIFS(BL$4:BL$51,"F",BJ$4:BJ$51,BL81) -> 0 | BK81: =COUNTIFS(BM$4:BM$51,"F",BJ$4:BJ$51,BL81) -> 0 | BL81: Y | BN81: 0 | BO81: =COUNTIFS(BQ$4:BQ$51,"F",BO$4:BO$51,BQ81) -> 0 | BP81: =COUNTIFS(BR$4:BR$51,"F",BO$4:BO$51,BQ81) -> 0 | BQ81: Y | BS81: 0 | BT81: =COUNTIFS(BV$4:BV$51,"F",BT$4:BT$51,BV81) -> 0 | BU81: =COUNTIFS(BW$4:BW$51,"F",BT$4:BT$51,BV81) -> 0 | BV81: Y | BX81: 0 | BY81: =COUNTIFS(CA$4:CA$51,"F",BY$4:BY$51,CA81) -> 0 | BZ81: =COUNTIFS(CB$4:CB$51,"F",BY$4:BY$51,CA81) -> 0 | CA81: Y | CC81: 0 | CD81: =COUNTIFS(CF$4:CF$51,"F",CD$4:CD$51,CF81) -> 0 | CE81: =COUNTIFS(CG$4:CG$51,"F",CD$4:CD$51,CF81) -> 0 | CF81: Y | CZ81: Feriti | DA81: =SUM(AQ81,AR81) -> 0 | DB81: 0.0% | DC81: 0 | DD81: 0.0% | DE81: 0 | DF81: 0.0%
E82: Tot. Incid. | F82: =SUM(F61,F64,F67,F70,F73,F76,F79) -> 48 | G82: 100.0% | CZ82: Tot. Incid. | DA82: =SUM(DA61,DA64,DA67,DA70,DA73,DA76,DA79) -> 31 | DB82: 64.6% | DC82: 17 | DD82: 35.4% | DE82: 48 | DF82: 100.0% | DH82: =SUM(DJ82:DU82) -> 16 | DJ82: =SUM(DJ61,DJ64,DJ67,DJ70,DJ73,DJ76,DJ79) -> 2 | DL82: =SUM(DL61,DL64,DL67,DL70,DL73,DL76,DL79) -> 10 | DN82: =SUM(DN61,DN64,DN67,DN70,DN73,DN76,DN79) -> 2 | DP82: =SUM(DP61,DP64,DP67,DP70,DP73,DP76,DP79) -> 0 | DR82: =SUM(DR61,DR64,DR67,DR70,DR73,DR76,DR79) -> 2 | DT82: =SUM(DT61,DT64,DT67,DT70,DT73,DT76,DT79) -> 0 | DV82: =SUM(DV61,DV64,DV67,DV70,DV73,DV76,DV79) -> 0 | DX82: =SUM(DX61,DX64,DX67,DX70,DX73,DX76,DX79) -> 1
C83: =SUM(C62+C65+C68+C71+C74+C77+C80) -> 43 | D83: =SUM(D62+D65+D68+D71+D74+D77+D80) -> 35 | E83: Tot. Morti | F83: 78 | G83: 100.0% | CZ83: Tot. Morti | DA83: =SUM(DA62,DA65,DA68,DA71,DA74,DA77,DA80) -> 50 | DB83: 64.1% | DC83: 28 | DD83: 35.9% | DE83: 78 | DF83: 100.0%
C84: =SUM(C63+C66+C69+C72+C75+C78+C81) -> 3 | D84: =SUM(D63+D66+D69+D72+D75+D78+D81) -> 1 | E84: Tot. Feriti | F84: 4 | G84: 100.0% | CZ84: Tot. Feriti | DA84: =SUM(DA63,DA66,DA69,DA72,DA75,DA78,DA81) -> 3 | DB84: 75.0% | DC84: 1 | DD84: 25.0% | DE84: 4 | DF84: 100.0% | DJ84: =J1 -> 3 assi ala alta >> | DK84: =O1 -> 3 assi ala bassa | DL84: =T1 -> Delta motorizzato | DM84: =Y1 -> Autogiro >>>>> | DN84: =AD1 -> Elicottero >>>>>> | DO84: =AI1 -> Paramot/carrello | DP84: =AN1 -> Veliv. Non Ident. | DQ84: =AT1 -> Cedim. Strutturale | DR84: =AY1 -> Collisione Elettrodotto | DS84: =BD1 -> Collisione Alberi | DT84: =BI1 -> Ammaraggio >>>>> | DU84: =BN1 -> Meteo proibitiva | DV84: =BS1 -> Uso paracadute | DW84: Collaudo velivolo | DX84: Malore + Varie | DY84: Totale
A86: I | B86: Volo manovrato a bassa quota | F86: =SUM(J86,O86,T86,Y86,AD86,AI86,AN86,AT86,AY86,BD86,BI86,BN86,BS86+BX86+CC86) -> 6 | H86: I | J86: 0 | K86: =COUNTIF(K$4:K$51,H86) -> 0 | L86: =COUNTIF(L$4:L$51,H86) -> 0 | M86: I | N86: I | O86: 2 | P86: =COUNTIF(P$4:P$51,N86) -> 2 | Q86: =COUNTIF(Q$4:Q$51,N86) -> 0 | R86: I | S86: I | T86: 0 | U86: =COUNTIF(U$4:U$51,S86) -> 0 | V86: =COUNTIF(V$4:V$51,S86) -> 0 | W86: I | X86: I | Y86: 0 | Z86: =COUNTIF(Z$4:Z$51,X86) -> 0 | AA86: =COUNTIF(AA$4:AA$51,X86) -> 0 | AB86: I | AC86: I | AD86: 0 | AE86: =COUNTIF(AE$4:AE$51,AC86) -> 0 | AF86: =COUNTIF(AF$4:AF$51,AC86) -> 0 | AG86: I | AH86: I | AI86: 0 | AJ86: =COUNTIF(AJ$4:AJ$51,AH86) -> 0 | AK86: =COUNTIF(AK$4:AK$51,AH86) -> 0 | AL86: I | AM86: I | AN86: 0 | AO86: =COUNTIF(AO$4:AO$51,AM86) -> 0 | AP86: =COUNTIF(AP$4:AP$51,AM86) -> 0 | AQ86: I | AR86: I | AT86: =AU86+AV86 -> 0 | AU86: =COUNTIF(AU$4:AU$51,AR86) -> 0 | AV86: =COUNTIF(AV$4:AV$51,AR86) -> 0 | AW86: I | AX86: I | AY86: 3 | AZ86: =COUNTIF(AZ$4:AZ$51,AX86) -> 0 | BA86: =COUNTIF(BA$4:BA$51,AX86) -> 3 | BB86: I | BC86: I | BD86: 1 | BE86: =COUNTIF(BE$4:BE$51,BC86) -> 0 | BF86: =COUNTIF(BF$4:BF$51,BC86) -> 1 | BG86: I | BH86: I | BI86: 0 | BJ86: =COUNTIF(BJ$4:BJ$51,BH86) -> 0 | BK86: =COUNTIF(BK$4:BK$51,BH86) -> 0 | BL86: I | BM86: I | BN86: 0 | BO86: =COUNTIF(BO$4:BO$51,BM86) -> 0 | BP86: =COUNTIF(BP$4:BP$51,BM86) -> 0 | BQ86: I | BR86: I | BS86: 0 | BT86: =COUNTIF(BT$4:BT$51,BR86) -> 0 | BU86: =COUNTIF(BU$4:BU$51,BR86) -> 0 | BV86: I | BW86: I | BX86: =BY86+BZ86 -> 0 | BY86: =COUNTIF(BY$4:BY$51,BW86) -> 0 | BZ86: =COUNTIF(BZ$4:BZ$51,BW86) -> 0 | CA86: I | CB86: I | CC86: =CD86+CE86 -> 0 | CD86: =COUNTIF(CD$4:CD$51,CB86) -> 0 | CE86: =COUNTIF(CE$4:CE$51,CB86) -> 0 | CY86: =A86 -> I | CZ86: =SUM(DJ86:DX86) -> 6 | DA86: =B86 -> Volo manovrato a bassa quota | DI86: =A86 -> I | DJ86: =J86 -> 0 | DK86: =O86 -> 2 | DL86: =T86 -> 0 | DM86: =Y86 -> 0 | DN86: =AD86 -> 0 | DO86: =AI86 -> 0 | DP86: =AN86 -> 0 | DQ86: =AT86 -> 0 | DR86: =AY86 -> 3 | DS86: =BD86 -> 1 | DT86: =BI86 -> 0 | DU86: =BN86 -> 0 | DV86: =BS86 -> 0 | DW86: =BX86 -> 0 | DX86: =CC86 -> 0 | DY86: =SUM(DJ86:DX86) -> 6
A87: H | B87: Fase di decollo | F87: 6 | H87: H | J87: 2 | K87: 0 | L87: 2 | M87: H | N87: H | O87: 3 | P87: 0 | Q87: 3 | R87: H | S87: H | T87: 0 | U87: 0 | V87: 0 | W87: H | X87: H | Y87: 1 | Z87: 0 | AA87: 1 | AB87: H | AC87: H | AD87: 0 | AE87: 0 | AF87: 0 | AG87: H | AH87: H | AI87: 0 | AJ87: 0 | AK87: 0 | AL87: H | AM87: H | AN87: 0 | AO87: 0 | AP87: 0 | AQ87: H | AR87: H | AT87: 0 | AU87: 0 | AV87: 0 | AW87: H | AX87: H | AY87: 0 | AZ87: 0 | BA87: 0 | BB87: H | BC87: H | BD87: 0 | BE87: 0 | BF87: 0 | BG87: H | BH87: H | BI87: 0 | BJ87: 0 | BK87: 0 | BL87: H | BM87: H | BN87: 0 | BO87: 0 | BP87: 0 | BQ87: H | BR87: H | BS87: 0 | BT87: 0 | BU87: 0 | BV87: H | BW87: H | BX87: 0 | BY87: 0 | BZ87: 0 | CA87: H | CB87: H | CC87: =CD87+CE87 -> 0 | CD87: 0 | CE87: 0 | CY87: H | CZ87: =SUM(DJ87:DX87) -> 6 | DA87: Fase di decollo | DI87: H | DJ87: 2 | DK87: 3 | DL87: 0 | DM87: 1 | DN87: 0 | DO87: 0 | DP87: 0 | DQ87: 0 | DR87: 0 | DS87: 0 | DT87: 0 | DU87: 0 | DV87: 0 | DW87: 0 | DX87: =CC87 -> 0 | DY87: =SUM(DJ87:DX87) -> 6
A88: J | B88: Fase di avvicinamento e atterraggio | F88: 8 | H88: J | J88: 0 | K88: 0 | L88: 0 | M88: J | N88: J | O88: 5 | P88: 1 | Q88: 4 | R88: J | S88: J | T88: 0 | U88: 0 | V88: 0 | W88: J | X88: J | Y88: 0 | Z88: 0 | AA88: 0 | AB88: J | AC88: J | AD88: 0 | AE88: 0 | AF88: 0 | AG88: J | AH88: J | AI88: 0 | AJ88: 0 | AK88: 0 | AL88: J | AM88: J | AN88: 0 | AO88: 0 | AP88: 0 | AQ88: J | AR88: J | AT88: 0 | AU88: 0 | AV88: 0 | AW88: J | AX88: J | AY88: 1 | AZ88: 0 | BA88: 1 | BB88: J | BC88: J | BD88: 1 | BE88: 0 | BF88: 1 | BG88: J | BH88: J | BI88: 0 | BJ88: 0 | BK88: 0 | BL88: J | BM88: J | BN88: 1 | BO88: 0 | BP88: 1 | BQ88: J | BR88: J | BS88: 0 | BT88: 0 | BU88: 0 | BV88: J | BW88: J | BX88: 0 | BY88: 0 | BZ88: 0 | CA88: J | CB88: J | CC88: 0 | CD88: 0 | CE88: 0 | CY88: J | CZ88: 8 | DA88: Fase di avvicinamento e atterraggio | DI88: J | DJ88: 0 | DK88: 5 | DL88: 0 | DM88: 0 | DN88: 0 | DO88: 0 | DP88: 0 | DQ88: 0 | DR88: 1 | DS88: 1 | DT88: 0 | DU88: 1 | DV88: 0 | DW88: 0 | DX88: 0 | DY88: 8
A89: V | B89: Virata | F89: 2 | H89: V | J89: 1 | K89: 0 | L89: 1 | M89: V | N89: V | O89: 1 | P89: 0 | Q89: 1 | R89: V | S89: V | T89: 0 | U89: 0 | V89: 0 | W89: V | X89: V | Y89: 0 | Z89: 0 | AA89: 0 | AB89: V | AC89: V | AD89: 0 | AE89: 0 | AF89: 0 | AG89: V | AH89: V | AI89: 0 | AJ89: 0 | AK89: 0 | AL89: V | AM89: V | AN89: 0 | AO89: 0 | AP89: 0 | AQ89: V | AR89: V | AT89: 0 | AU89: 0 | AV89: 0 | AW89: V | AX89: V | AY89: 0 | AZ89: 0 | BA89: 0 | BB89: V | BC89: V | BD89: 0 | BE89: 0 | BF89: 0 | BG89: V | BH89: V | BI89: 0 | BJ89: 0 | BK89: 0 | BL89: V | BM89: V | BN89: 0 | BO89: 0 | BP89: 0 | BQ89: V | BR89: V | BS89: 0 | BT89: 0 | BU89: 0 | BV89: V | BW89: V | BX89: 0 | BY89: 0 | BZ89: 0 | CA89: V | CB89: V | CC89: 0 | CD89: 0 | CE89: 0 | CY89: V | CZ89: 2 | DA89: Virata | DI89: V | DJ89: 1 | DK89: 1 | DL89: 0 | DM89: 0 | DN89: 0 | DO89: 0 | DP89: 0 | DQ89: 0 | DR89: 0 | DS89: 0 | DT89: 0 | DU89: 0 | DV89: 0 | DW89: 0 | DX89: 0 | DY89: 2
A90: M | B90: Manovra acrobatica | F90: 0 | H90: M | J90: 0 | K90: 0 | L90: 0 | M90: M | N90: M | O90: 0 | P90: 0 | Q90: 0 | R90: M | S90: M | T90: 0 | U90: 0 | V90: 0 | W90: M | X90: M | Y90: 0 | Z90: 0 | AA90: 0 | AB90: M | AC90: M | AD90: 0 | AE90: 0 | AF90: 0 | AG90: M | AH90: M | AI90: 0 | AJ90: 0 | AK90: 0 | AL90: M | AM90: M | AN90: 0 | AO90: 0 | AP90: 0 | AQ90: M | AR90: M | AT90: 0 | AU90: 0 | AV90: 0 | AW90: M | AX90: M | AY90: 0 | AZ90: 0 | BA90: 0 | BB90: M | BC90: M | BD90: 0 | BE90: 0 | BF90: 0 | BG90: M | BH90: M | BI90: 0 | BJ90: 0 | BK90: 0 | BL90: M | BM90: M | BN90: 0 | BO90: 0 | BP90: 0 | BQ90: M | BR90: M | BS90: 0 | BT90: 0 | BU90: 0 | BV90: M | BW90: M | BX90: 0 | BY90: 0 | BZ90: 0 | CA90: M | CB90: M | CC90: 0 | CD90: 0 | CE90: 0 | CY90: M | CZ90: 0 | DA90: Manovra acrobatica | DI90: M | DJ90: 0 | DK90: 0 | DL90: 0 | DM90: 0 | DN90: 0 | DO90: 0 | DP90: 0 | DQ90: 0 | DR90: 0 | DS90: 0 | DT90: 0 | DU90: 0 | DV90: 0 | DW90: 0 | DX90: 0 | DY90: 0
A91: S | B91: Stallo | F91: 1 | H91: S | J91: 0 | K91: 0 | L91: 0 | M91: S | N91: S | O91: 1 | P91: 0 | Q91: 1 | R91: S | S91: S | T91: 0 | U91: 0 | V91: 0 | W91: S | X91: S | Y91: 0 | Z91: 0 | AA91: 0 | AB91: S | AC91: S | AD91: 0 | AE91: 0 | AF91: 0 | AG91: S | AH91: S | AI91: 0 | AJ91: 0 | AK91: 0 | AL91: S | AM91: S | AN91: 0 | AO91: 0 | AP91: 0 | AQ91: S | AR91: S | AT91: 0 | AU91: 0 | AV91: 0 | AW91: S | AX91: S | AY91: 0 | AZ91: 0 | BA91: 0 | BB91: S | BC91: S | BD91: 0 | BE91: 0 | BF91: 0 | BG91: S | BH91: S | BI91: 0 | BJ91: 0 | BK91: 0 | BL91: S | BM91: S | BN91: 0 | BO91: 0 | BP91: 0 | BQ91: S | BR91: S | BS91: 0 | BT91: 0 | BU91: 0 | BV91: S | BW91: S | BX91: 0 | BY91: 0 | BZ91: 0 | CA91: S | CB91: S | CC91: 0 | CD91: 0 | CE91: 0 | CY91: S | CZ91: 1 | DA91: Stallo | DI91: S | DJ91: 0 | DK91: 1 | DL91: 0 | DM91: 0 | DN91: 0 | DO91: 0 | DP91: 0 | DQ91: 0 | DR91: 0 | DS91: 0 | DT91: 0 | DU91: 0 | DV91: 0 | DW91: 0 | DX91: 0 | DY91: 1
A92: P | B92: Atterraggio di emergenza per piantata motore o perdita di potenza | F92: 3 | H92: P | J92: 0 | K92: 0 | L92: 0 | M92: P | N92: P | O92: 3 | P92: 1 | Q92: 2 | R92: P | S92: P | T92: 0 | U92: 0 | V92: 0 | W92: P | X92: P | Y92: 0 | Z92: 0 | AA92: 0 | AB92: P | AC92: P | AD92: 0 | AE92: 0 | AF92: 0 | AG92: P | AH92: P | AI92: 0 | AJ92: 0 | AK92: 0 | AL92: P | AM92: P | AN92: 0 | AO92: 0 | AP92: 0 | AQ92: P | AR92: P | AT92: 0 | AU92: 0 | AV92: 0 | AW92: P | AX92: P | AY92: 0 | AZ92: 0 | BA92: 0 | BB92: P | BC92: P | BD92: 0 | BE92: 0 | BF92: 0 | BG92: P | BH92: P | BI92: 0 | BJ92: 0 | BK92: 0 | BL92: P | BM92: P | BN92: 0 | BO92: 0 | BP92: 0 | BQ92: P | BR92: P | BS92: 0 | BT92: 0 | BU92: 0 | BV92: P | BW92: P | BX92: 0 | BY92: 0 | BZ92: 0 | CA92: P | CB92: P | CC92: 0 | CD92: 0 | CE92: 0 | CY92: P | CZ92: 3 | DA92: Atterraggio di emergenza per piantata motore o perdita di potenza | DI92: P | DJ92: 0 | DK92: 3 | DL92: 0 | DM92: 0 | DN92: 0 | DO92: 0 | DP92: 0 | DQ92: 0 | DR92: 0 | DS92: 0 | DT92: 0 | DU92: 0 | DV92: 0 | DW92: 0 | DX92: 0 | DY92: 3
A93: R | B93: Avaria generica (rottura elica ecc.) | F93: 0 | H93: R | J93: 0 | K93: 0 | L93: 0 | M93: R | N93: R | O93: 0 | P93: 0 | Q93: 0 | R93: R | S93: R | T93: 0 | U93: 0 | V93: 0 | W93: R | X93: R | Y93: 0 | Z93: 0 | AA93: 0 | AB93: R | AC93: R | AD93: 0 | AE93: 0 | AF93: 0 | AG93: R | AH93: R | AI93: 0 | AJ93: 0 | AK93: 0 | AL93: R | AM93: R | AN93: 0 | AO93: 0 | AP93: 0 | AQ93: R | AR93: R | AT93: 0 | AU93: 0 | AV93: 0 | AW93: R | AX93: R | AY93: 0 | AZ93: 0 | BA93: 0 | BB93: R | BC93: R | BD93: 0 | BE93: 0 | BF93: 0 | BG93: R | BH93: R | BI93: 0 | BJ93: 0 | BK93: 0 | BL93: R | BM93: R | BN93: 0 | BO93: 0 | BP93: 0 | BQ93: R | BR93: R | BS93: 0 | BT93: 0 | BU93: 0 | BV93: R | BW93: R | BX93: 0 | BY93: 0 | BZ93: 0 | CA93: R | CB93: R | CC93: 0 | CD93: 0 | CE93: 0 | CY93: R | CZ93: 0 | DA93: Avaria generica (rottura elica ecc.) | DI93: R | DJ93: 0 | DK93: 0 | DL93: 0 | DM93: 0 | DN93: 0 | DO93: 0 | DP93: 0 | DQ93: 0 | DR93: 0 | DS93: 0 | DT93: 0 | DU93: 0 | DV93: 0 | DW93: 0 | DX93: 0 | DY93: 0
A94: U | B94: Avaria molto grave come blocco dei comandi | F94: 0 | H94: U | J94: 0 | K94: 0 | L94: 0 | M94: U | N94: U | O94: 0 | P94: 0 | Q94: 0 | R94: U | S94: U | T94: 0 | U94: 0 | V94: 0 | W94: U | X94: U | Y94: 0 | Z94: 0 | AA94: 0 | AB94: U | AC94: U | AD94: 0 | AE94: 0 | AF94: 0 | AG94: U | AH94: U | AI94: 0 | AJ94: 0 | AK94: 0 | AL94: U | AM94: U | AN94: 0 | AO94: 0 | AP94: 0 | AQ94: U | AR94: U | AT94: 0 | AU94: 0 | AV94: 0 | AW94: U | AX94: U | AY94: 0 | AZ94: 0 | BA94: 0 | BB94: U | BC94: U | BD94: 0 | BE94: 0 | BF94: 0 | BG94: U | BH94: U | BI94: 0 | BJ94: 0 | BK94: 0 | BL94: U | BM94: U | BN94: 0 | BO94: 0 | BP94: 0 | BQ94: U | BR94: U | BS94: 0 | BT94: 0 | BU94: 0 | BV94: U | BW94: U | BX94: 0 | BY94: 0 | BZ94: 0 | CA94: U | CB94: U | CC94: 0 | CD94: 0 | CE94: 0 | CY94: U | CZ94: 0 | DA94: Avaria molto grave come blocco dei comandi | DI94: U | DJ94: 0 | DK94: 0 | DL94: 0 | DM94: 0 | DN94: 0 | DO94: 0 | DP94: 0 | DQ94: 0 | DR94: 0 | DS94: 0 | DT94: 0 | DU94: 0 | DV94: 0 | DW94: 0 | DX94: 0 | DY94: 0
A95: N | B95: Condizioni meteorologiche marginali (non proibitive) | F95: =SUM(J95,O95,T95,Y95,AD95,AI95,AN95,AT95,AY95,BD95,BI95,BN95,BS95+BX95+CC95) -> 2 | H95: N | J95: 0 | K95: 0 | L95: 0 | M95: N | N95: N | O95: 2 | P95: 1 | Q95: 1 | R95: N | S95: N | T95: 0 | U95: 0 | V95: 0 | W95: N | X95: N | Y95: 0 | Z95: 0 | AA95: 0 | AB95: N | AC95: N | AD95: 0 | AE95: 0 | AF95: 0 | AG95: N | AH95: N | AI95: 0 | AJ95: 0 | AK95: 0 | AL95: N | AM95: N | AN95: 0 | AO95: 0 | AP95: 0 | AQ95: N | AR95: N | AT95: 0 | AU95: 0 | AV95: 0 | AW95: N | AX95: N | AY95: 0 | AZ95: 0 | BA95: 0 | BB95: N | BC95: N | BD95: 0 | BE95: 0 | BF95: 0 | BG95: N | BH95: N | BI95: 0 | BJ95: 0 | BK95: 0 | BL95: N | BM95: N | BN95: 0 | BO95: 0 | BP95: 0 | BQ95: N | BR95: N | BS95: 0 | BT95: 0 | BU95: 0 | BV95: N | BW95: N | BX95: 0 | BY95: 0 | BZ95: 0 | CA95: N | CB95: N | CC95: 0 | CD95: 0 | CE95: 0 | CY95: N | CZ95: 2 | DA95: Condizioni meteorologiche marginali (non proibitive) | DI95: N | DJ95: 0 | DK95: 2 | DL95: 0 | DM95: 0 | DN95: 0 | DO95: 0 | DP95: 0 | DQ95: 0 | DR95: 0 | DS95: 0 | DT95: 0 | DU95: 0 | DV95: 0 | DW95: 0 | DX95: 0 | DY95: 2
A96: X | B96: Velivolo sperimentale o autocostruito ma non da piani o kit | F96: 0 | H96: X | J96: 0 | K96: 0 | L96: 0 | M96: X | N96: X | O96: 0 | P96: 0 | Q96: 0 | R96: X | S96: X | T96: 0 | U96: 0 | V96: 0 | W96: X | X96: X | Y96: 0 | Z96: 0 | AA96: 0 | AB96: X | AC96: X | AD96: 0 | AE96: 0 | AF96: 0 | AG96: X | AH96: X | AI96: 0 | AJ96: 0 | AK96: 0 | AL96: X | AM96: X | AN96: 0 | AO96: 0 | AP96: 0 | AQ96: X | AR96: X | AT96: 0 | AU96: 0 | AV96: 0 | AW96: X | AX96: X | AY96: 0 | AZ96: 0 | BA96: 0 | BB96: X | BC96: X | BD96: 0 | BE96: 0 | BF96: 0 | BG96: X | BH96: X | BI96: 0 | BJ96: 0 | BK96: 0 | BL96: X | BM96: X | BN96: 0 | BO96: 0 | BP96: 0 | BQ96: X | BR96: X | BS96: 0 | BT96: 0 | BU96: 0 | BV96: X | BW96: X | BX96: 0 | BY96: 0 | BZ96: 0 | CA96: X | CB96: X | CC96: 0 | CD96: 0 | CE96: 0 | CY96: X | CZ96: 0 | DA96: Velivolo sperimentale o autocostruito ma non da piani o kit | DI96: X | DJ96: 0 | DK96: 0 | DL96: 0 | DM96: 0 | DN96: 0 | DO96: 0 | DP96: 0 | DQ96: 0 | DR96: 0 | DS96: 0 | DT96: 0 | DU96: 0 | DV96: 0 | DW96: 0 | DX96: 0 | DY96: 0
G98: D | H98: I | J98: 3AA | K98: Dt | L98: Dt | M98: P | N98: T | O98: 3AB | P98: Dt | Q98: Dt | R98: P | S98: T | T98: DM | U98: Dt | V98: Dt | W98: P | X98: T | Y98: Atg | Z98: Dt | AA98: Dt | AB98: P | AC98: T | AD98: Elc | AE98: Dt | AF98: Dt | AG98: P | AH98: T | AI98: Prm | AJ98: Dt | AK98: Dt | AL98: P | AM98: T | AN98: VNI | AO98: Dt | AP98: Dt | AQ98: P | AR98: T | AT98: CS | AU98: V | AV98: D | AW98: P | AX98: T | AY98: CLE | AZ98: V | BA98: D | BB98: P | BC98: T | BD98: CA | BE98: V | BF98: D | BG98: P | BH98: T | BI98: Amm. | BJ98: V | BK98: D | BL98: P | BM98: T | BN98: IMC | BO98: V | BP98: D | BQ98: P | BR98: T | BS98: Prcd | BT98: V | BU98: D | BV98: P | BW98: T | BX98: Clld. | BY98: V | BZ98: D | CA98: P | CB98: T | CC98: Mlr+Vr | CD98: V | CE98: D | CF98: P | CG98: T
A99: Velocità di crociera media calcolata tra tutti i veivoli compresi nella colonna corrispondente | J99: =AVERAGE(J4:J51) -> 190.85 | O99: =AVERAGE(O4:O51) -> 202.1434783 | T99: =AVERAGE(T4:T51) ->  | Y99: =AVERAGE(Y4:Y51) -> 130 | AD99: =AVERAGE(AD4:AD51) ->  | AN99: =AVERAGE(AN4:AN51) -> 197 | AT99: =AVERAGE(AT4:AT51) -> 186.5 | AY99: =AVERAGE(AY4:AY51) -> 187.48 | BD99: =AVERAGE(BD4:BD51) -> 191.105 | BI99: =AVERAGE(BI4:BI51) ->  | BN99: =AVERAGE(BN4:BN51) -> 138 | BS99: =AVERAGE(BS4:BS51) ->  | BX99: =AVERAGE(BX4:BX51) ->  | CC99: =AVERAGE(CC4:CC51) -> 240
A101: Velocità di crociera del velivolo, in ordine crescente, per ogni incidente della colonna corrispondente | H101: 1 | J101: =SMALL(J$4:J$51,H101) -> 150.1 | K101: =VLOOKUP(J101,DB$4:DD$52,2,TRUE) -> Rebel | N101: =COUNTIF(J$4:J$52,J101) -> 1 | O101: =SMALL(O$4:O$51,H101) -> 150.2 | P101: =VLOOKUP(O101,DB$4:DD$52,2,TRUE) -> Colibrì | S101: =COUNTIF(O$4:O$52,O101) -> 1 | T101: =SMALL(T$4:T$51,H101) ->  | U101: =VLOOKUP(T101,DB$4:DD$52,2,TRUE) ->  | X101: =COUNTIF(T$4:T$52,T101) -> 0 | Y101: =SMALL(Y$4:Y$51,H101) -> 130 | Z101: =VLOOKUP(Y101,DB$4:DD$52,2,TRUE) -> Autogiro | AC101: =COUNTIF(Y$4:Y$52,Y101) -> 1 | AD101: =SMALL(AD$4:AD$51,H101) ->  | AE101: =VLOOKUP(AD101,DB$4:DD$52,2,TRUE) ->  | AH101: =COUNTIF(AD$4:AD$52,AD101) -> 0 | AI101: =SMALL(AI$4:AI$51,H101) ->  | AJ101: =VLOOKUP(AI101,DB$4:DD$52,2,TRUE) ->  | AM101: =COUNTIF(AI$4:AI$52,AI101) -> 0 | AN101: =SMALL(AN$4:AN$51,H101) -> 197 | AO101: =VLOOKUP(AN101,DB$4:DD$52,2,TRUE) -> Velivolo non definito | AR101: =COUNTIF(AN$4:AN$52,AN101) -> 1 | AT101: =SMALL(AT$4:AT$51,H101) -> 173 | AU101: =VLOOKUP(AT101,DB$4:DD$52,2,TRUE) -> Savannah | AX101: =COUNTIF(AT$4:AT$52,AT101) -> 1 | AY101: =SMALL(AY$4:AY$51,H101) -> 144 | AZ101: =VLOOKUP(AY101,DB$4:DD$52,2,TRUE) -> Autogiro Magni M 22 | BC101: =COUNTIF(AY$4:AY$52,AY101) -> 1 | BD101: =SMALL(BD$4:BD$51,H101) -> 185.1 | BE101: =VLOOKUP(BD101,DB$4:DD$52,2,TRUE) -> Tecnam P96 | BH101: =COUNTIF(BD$4:BD$52,BD101) -> 1 | BI101: =SMALL(BI$4:BI$51,H101) ->  | BJ101: =VLOOKUP(BI101,DB$4:DD$52,2,TRUE) ->  | BM101: =COUNTIF(BI$4:BI$52,BI101) -> 0 | BN101: =SMALL(BN$4:BN$51,H101) -> 88 | BO101: =VLOOKUP(BN101,DB$4:DD$52,2,TRUE) -> Delta a motore | BR101: =COUNTIF(BN$4:BN$52,BN101) -> 1 | BS101: =SMALL(BS$4:BS$51,H101) ->  | BT101: =VLOOKUP(BS101,DB$4:DD$52,2,TRUE) ->  | BW101: =COUNTIF(BS$4:BS$52,BS101) -> 0 | BX101: =SMALL(BX$4:BX$51,H101) ->  | BY101: =VLOOKUP(BX101,DB$4:DD$52,2,TRUE) ->  | CB101: =COUNTIF(BX$4:BX$52,BX101) -> 0 | CC101: =SMALL(CC$4:CC$51,H101) -> 240.1 | CD101: =VLOOKUP(CC101,DB$4:DD$52,2,TRUE) -> MAG 1 | CG101: =COUNTIF(CC$4:CC$52,CC101) -> 1
A102: Velocità di crociera del velivolo, in ordine crescente, per ogni incidente della colonna corrispondente | H102: =H101+1 -> 2 | J102: 180 | K102: Tecnam P92 | N102: 3 | O102: 170.2 | P102: Jodel D18 | S102: 1 | Y102: =SMALL(Y$4:Y$51,H102) ->  | Z102: =VLOOKUP(Y102,DB$4:DD$52,2,TRUE) ->  | AC102: =COUNTIF(Y$4:Y$52,Y102) -> 0 | AR102: 0 | AT102: 200 | AU102: Sky Arrow | AX102: 1 | AY102: 150.2 | AZ102: Colibrì | BC102: 1 | BD102: 197.11 | BE102: Afr 50 Meteor | BH102: 1 | BN102: 188 | BO102: Folder | BR102: 1 | CC102: =SMALL(CC$4:CC$51,H102) ->  | CD102: =VLOOKUP(CC102,DB$4:DD$52,2,TRUE) ->  | CG102: =COUNTIF(CC$4:CC$52,CC102) -> 0
A103: Velocità di crociera del velivolo, in ordine crescente, per ogni incidente della colonna corrispondente | H103: =H102+1 -> 3 | J103: 180 | K103: Tecnam P92 | N103: 3 | O103: 181 | P103: Storm | S103: 2 | AX103: 0 | AY103: 172 | AZ103: Elicottero non definito | BC103: 1 | BH103: 0 | BR103: 0
A104: Velocità di crociera del velivolo, in ordine crescente, per ogni incidente della colonna corrispondente | H104: 4 | J104: 180 | K104: Tecnam P92 | N104: 3 | O104: 181 | P104: Storm | S104: 2 | AY104: 176 | AZ104: Spotter | BC104: 1
A105: Velocità di crociera del velivolo, in ordine crescente, per ogni incidente della colonna corrispondente | H105: 5 | J105: 225 | K105: Pipistrel Virus | N105: 1 | O105: 182 | P105: Storm 200 | S105: 1 | AY105: 180 | AZ105: Tecnam P92 | BC105: 1
A106: Velocità di crociera del velivolo, in ordine crescente, per ogni incidente della colonna corrispondente | H106: 6 | J106: 230 | K106: CT | N106: 1 | O106: 185 | P106: Pioneer 200 | S106: 2 | AY106: 189 | AZ106: Asso V | BC106: 1
A107: Velocità di crociera del velivolo, in ordine crescente, per ogni incidente della colonna corrispondente | H107: 7 | N107: 0 | O107: 185 | P107: Pioneer 200 | S107: 2 | AY107: 200 | AZ107: Sky Arrow | BC107: 1
A108: Velocità di crociera del velivolo, in ordine crescente, per ogni incidente della colonna corrispondente | H108: 8 | N108: 0 | O108: 185.1 | P108: Tecnam P96 | S108: 1 | AY108: 213 | AZ108: Corby Starlet | BC108: 1
A109: Velocità di crociera del velivolo, in ordine crescente, per ogni incidente della colonna corrispondente | H109: 9 | N109: 0 | O109: 189 | P109: Asso V | S109: 1 | AY109: 220.3 | AZ109: Pipistrel Sinus | BC109: 1
A110: Velocità di crociera del velivolo, in ordine crescente, per ogni incidente della colonna corrispondente | H110: 10 | N110: 0 | O110: 190 | P110: Amigo | S110: 2 | AY110: 230.3 | AZ110: Pro Mec Freccia | BC110: 1
A111: Velocità di crociera del velivolo, in ordine crescente, per ogni incidente della colonna corrispondente | H111: 11 | N111: 0 | O111: 190 | P111: Amigo | S111: 2 | BC111: 0
A112: Velocità di crociera del velivolo, in ordine crescente, per ogni incidente della colonna corrispondente | H112: 12 | N112: 0 | O112: 200.2 | P112: Fly Synthesis Texan | S112: 1
A113: Velocità di crociera del velivolo, in ordine crescente, per ogni incidente della colonna corrispondente | H113: 13 | N113: 0 | O113: 210.1 | P113: Jihlavan Rapid | S113: 1
A114: Velocità di crociera del velivolo, in ordine crescente, per ogni incidente della colonna corrispondente | H114: 14 | N114: 0 | O114: 218 | P114: Tecnam P2002 Sierra | S114: 3
A115: Velocità di crociera del velivolo, in ordine crescente, per ogni incidente della colonna corrispondente | H115: 15 | N115: 0 | O115: 218 | P115: Tecnam P2002 Sierra | S115: 3
A116: Velocità di crociera del velivolo, in ordine crescente, per ogni incidente della colonna corrispondente | H116: 16 | N116: 0 | O116: 218 | P116: Tecnam P2002 Sierra | S116: 3
A117: Velocità di crociera del velivolo, in ordine crescente, per ogni incidente della colonna corrispondente | H117: 17 | N117: 0 | O117: 220 | P117: Pioneer 300 | S117: 3
A118: Velocità di crociera del velivolo, in ordine crescente, per ogni incidente della colonna corrispondente | H118: 18 | N118: 0 | O118: 220 | P118: Pioneer 300 | S118: 3
A119: Velocità di crociera del velivolo, in ordine crescente, per ogni incidente della colonna corrispondente | H119: 19 | N119: 0 | O119: 220 | P119: Pioneer 300 | S119: 3
A120: Velocità di crociera del velivolo, in ordine crescente, per ogni incidente della colonna corrispondente | H120: 20 | N120: 0 | O120: 220.2 | P120: Zenair (*CH 650) | S120: 1
A121: Velocità di crociera del velivolo, in ordine crescente, per ogni incidente della colonna corrispondente | H121: 21 | N121: 0 | O121: 230.2 | P121: Esqual | S121: 1
A122: Velocità di crociera del velivolo, in ordine crescente, per ogni incidente della colonna corrispondente | H122: 22 | N122: 0 | O122: 243 | P122: Fascination | S122: 1
A123: Velocità di crociera del velivolo, in ordine crescente, per ogni incidente della colonna corrispondente | H123: 23 | N123: 0 | O123: 243.1 | P123: Lightplanes FK14 | S123: 1
A124: Velocità di crociera del velivolo, in ordine crescente, per ogni incidente della colonna corrispondente | H124: =H123+1 -> 24 | N124: 0 | S124: 0
AO187: 7
